Body Name,Body,Organisational unit,Service division,Expenditure category,Date,Transacton number,Net amount,Supplier,Narrative
Tendring DC,http://statistics.data.gov.uk/id/local-authority-district/22UN,Environmental Services,4840 - Recycling,5466 - Community Site Payments,08/02/2011,1042205-1,581.68,2100040 - 3RD Thorpe Scout Group,THORPE SCOUT GROUP
Tendring DC,http://statistics.data.gov.uk/id/local-authority-district/22UN,Regeneration Services,7747 - Town Centres Funding (Empty Shops),4900 - Grants,02/02/2011,2080309-1,2000,2110891 - A Head Start,Grant - A Head Start
Tendring DC,http://statistics.data.gov.uk/id/local-authority-district/22UN,Environmental Services,4820 - Public Conveniences,2100 - Building Repairs,02/02/2011,2080475-1,605.38,2100051 - A L Wicken Carpenter & Building Contractor,Week B
Tendring DC,http://statistics.data.gov.uk/id/local-authority-district/22UN,Environmental Services,4820 - Public Conveniences,2100 - Building Repairs,02/02/2011,2080475-2,964.25,2100051 - A L Wicken Carpenter & Building Contractor,Week B
Tendring DC,http://statistics.data.gov.uk/id/local-authority-district/22UN,Environmental Services,4820 - Public Conveniences,2100 - Building Repairs,22/02/2011,2081262-1,1955.46,2100051 - A L Wicken Carpenter & Building Contractor,Re Dec
Tendring DC,http://statistics.data.gov.uk/id/local-authority-district/22UN,Human Resources and Customer Services,1880 - Office Accommodation Expenses,2702 - Window Cleaning,02/02/2011,1042065-1,1100,REDACTED PERSONAL DATA,ALS-CLEANING
Tendring DC,http://statistics.data.gov.uk/id/local-authority-district/22UN,Community Services,5360 - Sheltered Units,2702 - Window Cleaning,02/02/2011,2080463-1,1370,REDACTED PERSONAL DATA,ALS Window Cleaning
Tendring DC,http://statistics.data.gov.uk/id/local-authority-district/22UN,Environmental Services,4840 - Recycling,5466 - Community Site Payments,08/02/2011,1042193-1,754.34,2101917 - Alresford Parish Council,ALRESFORD VILLAGE HALL
Tendring DC,http://statistics.data.gov.uk/id/local-authority-district/22UN,Leisure Services,5920 - Open Spaces,2115 - Grounds Maintenance External Contractors,02/02/2011,1041986-1,1348,2109983 - Amberol Ltd,PICNIC BENCHES
Tendring DC,http://statistics.data.gov.uk/id/local-authority-district/22UN,Leisure Services,C143 - Brook Country Park,C200 - Main Contractor,15/02/2011,2080944-1,557.5,2103226 - Anglian Timber,Stakes & Rails
Tendring DC,http://statistics.data.gov.uk/id/local-authority-district/22UN,Leisure Services,8510 - Dovercourt Swimming Pool & A.W.F.,2520 - Sewerage & Environmental Charges,02/02/2011,2080416-1,2559.52,2100007 - Anglian Water Services Ltd,Ang Water
Tendring DC,http://statistics.data.gov.uk/id/local-authority-district/22UN,Environmental Services,4720 - Dog Warden,6300 - Contract Payment,08/02/2011,1042224-1,4528.36,2100027 - Animal Wardens Ltd,CONFEE D WARDENS JAN 11
Tendring DC,http://statistics.data.gov.uk/id/local-authority-district/22UN,Technical & Procurement Services,H860 - Disabled Adaptations,C200 - Main Contractor,15/02/2011,1042406-1,1175,2105132 - Arrow Heating,REDACTED PERSONAL DATA
Tendring DC,http://statistics.data.gov.uk/id/local-authority-district/22UN,Technical & Procurement Services,H860 - Disabled Adaptations,C200 - Main Contractor,15/02/2011,1042406-2,3685,2105132 - Arrow Heating,REDACTED PERSONAL DATA
Tendring DC,http://statistics.data.gov.uk/id/local-authority-district/22UN,Technical & Procurement Services,H706 - Kitchen & Bathroom Replacement,C200 - Main Contractor,14/02/2011,1042449-1,1680,2105132 - Arrow Heating,REDACTED PERSONAL DATA
Tendring DC,http://statistics.data.gov.uk/id/local-authority-district/22UN,Technical & Procurement Services,H706 - Kitchen & Bathroom Replacement,C200 - Main Contractor,22/02/2011,1042450-1,552,2105132 - Arrow Heating,REDACTED PERSONAL DATA
Tendring DC,http://statistics.data.gov.uk/id/local-authority-district/22UN,Technical & Procurement Services,H706 - Kitchen & Bathroom Replacement,C200 - Main Contractor,22/02/2011,1042450-2,1128,2105132 - Arrow Heating,REDACTED PERSONAL DATA
Tendring DC,http://statistics.data.gov.uk/id/local-authority-district/22UN,Technical & Procurement Services,H860 - Disabled Adaptations,C200 - Main Contractor,22/02/2011,1042452-1,1185,2105132 - Arrow Heating,REDACTED PERSONAL DATA
Tendring DC,http://statistics.data.gov.uk/id/local-authority-district/22UN,Technical & Procurement Services,H860 - Disabled Adaptations,C200 - Main Contractor,22/02/2011,1042452-2,3604,2105132 - Arrow Heating,REDACTED PERSONAL DATA
Tendring DC,http://statistics.data.gov.uk/id/local-authority-district/22UN,Technical & Procurement Services,H860 - Disabled Adaptations,C200 - Main Contractor,02/02/2011,2080368-1,1114,2105132 - Arrow Heating,REDACTED PERSONAL DATA
Tendring DC,http://statistics.data.gov.uk/id/local-authority-district/22UN,Technical & Procurement Services,H860 - Disabled Adaptations,C200 - Main Contractor,02/02/2011,2080368-2,3758,2105132 - Arrow Heating,REDACTED PERSONAL DATA
Tendring DC,http://statistics.data.gov.uk/id/local-authority-district/22UN,Technical & Procurement Services,H860 - Disabled Adaptations,C200 - Main Contractor,08/02/2011,2080609-1,1150,2105132 - Arrow Heating,REDACTED PERSONAL DATA
Tendring DC,http://statistics.data.gov.uk/id/local-authority-district/22UN,Technical & Procurement Services,H860 - Disabled Adaptations,C200 - Main Contractor,08/02/2011,2080609-2,3695,2105132 - Arrow Heating,REDACTED PERSONAL DATA
Tendring DC,http://statistics.data.gov.uk/id/local-authority-district/22UN,Community Services,6740 - Careline,3060 - Running Costs - Diesel,08/02/2011,2080640-1,163.18,2101825 - ARVAL PHH,Careline Fuel Cards
Tendring DC,http://statistics.data.gov.uk/id/local-authority-district/22UN,Community Services,6740 - Careline,3060 - Running Costs - Diesel,08/02/2011,2080640-2,356.61,2101825 - ARVAL PHH,Careline Fuel Cards
Tendring DC,http://statistics.data.gov.uk/id/local-authority-district/22UN,Leisure Services,1950 - Transport,3060 - Running Costs - Diesel,15/02/2011,2080932-1,3671.05,2101825 - ARVAL PHH,Jan 11 Fuel
Tendring DC,http://statistics.data.gov.uk/id/local-authority-district/22UN,Leisure Services,1950 - Transport,3060 - Running Costs - Diesel,15/02/2011,2080932-2,690.71,2101825 - ARVAL PHH,Jan 11 Fuel
Tendring DC,http://statistics.data.gov.uk/id/local-authority-district/22UN,Human Resources and Customer Services,1880 - Office Accommodation Expenses,2100 - Building Repairs,15/02/2011,1042408-1,1350,2101568 - Asgen Limited,ASGEN LTD
Tendring DC,http://statistics.data.gov.uk/id/local-authority-district/22UN,Technical & Procurement Services,C276 - Clacton Regeneration,C200 - Main Contractor,22/02/2011,1042551-1,11500,2109048 - Atkins Ltd,MARINE PARADE
Tendring DC,http://statistics.data.gov.uk/id/local-authority-district/22UN,Financial Services,6620 - Corporate Management - General,5180 - External Audit Fees,02/02/2011,2080412-1,15405,2100039 - Audit Commission,Instalment 7
Tendring DC,http://statistics.data.gov.uk/id/local-authority-district/22UN,Community Services,7020 - SSCF - Crime Reduction,4900 - Grants,02/02/2011,2080438-1,962,2100069 - Autoprint,Crime & Disorder Questionnaire & Envelopes
Tendring DC,http://statistics.data.gov.uk/id/local-authority-district/22UN,Human Resources and Customer Services,1810 - Manpower Planning Summary,4460 - Legal & Professional Expenses,08/02/2011,2080746-1,734,2110695 - Beachcroft LLP,Beach Croft
Tendring DC,http://statistics.data.gov.uk/id/local-authority-district/22UN,Human Resources and Customer Services,1810 - Manpower Planning Summary,4460 - Legal & Professional Expenses,08/02/2011,2080746-2,177.5,2110695 - Beachcroft LLP,Beach Croft
Tendring DC,http://statistics.data.gov.uk/id/local-authority-district/22UN,Human Resources and Customer Services,1810 - Manpower Planning Summary,4460 - Legal & Professional Expenses,08/02/2011,2080747-1,339,2110695 - Beachcroft LLP,Beachcroft
Tendring DC,http://statistics.data.gov.uk/id/local-authority-district/22UN,Human Resources and Customer Services,1810 - Manpower Planning Summary,4460 - Legal & Professional Expenses,08/02/2011,2080747-2,718,2110695 - Beachcroft LLP,Beachcroft
Tendring DC,http://statistics.data.gov.uk/id/local-authority-district/22UN,Human Resources and Customer Services,1810 - Manpower Planning Summary,4460 - Legal & Professional Expenses,08/02/2011,2080747-3,26.6,2110695 - Beachcroft LLP,Beachcroft
Tendring DC,http://statistics.data.gov.uk/id/local-authority-district/22UN,Human Resources and Customer Services,1810 - Manpower Planning Summary,4460 - Legal & Professional Expenses,22/02/2011,2081171-1,1368.5,2110695 - Beachcroft LLP,Beachcroft
Tendring DC,http://statistics.data.gov.uk/id/local-authority-district/22UN,Leisure Services,8510 - Dovercourt Swimming Pool & A.W.F.,4000 - Furniture,22/02/2011,1042482-1,2350,2100123 - Bee-Tee,DOVERCOURT
Tendring DC,http://statistics.data.gov.uk/id/local-authority-district/22UN,Environmental Services,H920 - DFGs,C400 - Grant payments,15/02/2011,1042235-1,6262.95,2108241 - BeSure Building & Maintenance Svs Ltd,REDACTED PERSONAL DATA
Tendring DC,http://statistics.data.gov.uk/id/local-authority-district/22UN,Environmental Services,H920 - DFGs,C400 - Grant payments,22/02/2011,2081127-1,4235.11,2108241 - BeSure Building & Maintenance Svs Ltd,REDACTED PERSONAL DATA
Tendring DC,http://statistics.data.gov.uk/id/local-authority-district/22UN,Housing Services,5480 - Repair & Maintenance,2071 - Electric Installation Testing,08/02/2011,1042223-1,948.9,2100155 - Blue Flame,TEST INSPECT & UPGRADE 10 PROPERTIES
Tendring DC,http://statistics.data.gov.uk/id/local-authority-district/22UN,Housing Services,5480 - Repair & Maintenance,2072 - Planned Partial Refurbishment To Electrical Instal,08/02/2011,1042223-2,5331.45,2100155 - Blue Flame,TEST INSPECT & UPGRADE 10 PROPERTIES
Tendring DC,http://statistics.data.gov.uk/id/local-authority-district/22UN,Housing Services,H810 - Electrical Re-wiring,C200 - Main Contractor,08/02/2011,1042223-3,3126,2100155 - Blue Flame,TEST INSPECT & UPGRADE 10 PROPERTIES
Tendring DC,http://statistics.data.gov.uk/id/local-authority-district/22UN,Technical & Procurement Services,H805 - Major Refurbishment of Heating,C200 - Main Contractor,15/02/2011,1042274-1,2375,2100155 - Blue Flame,KINGS QUAY STREET
Tendring DC,http://statistics.data.gov.uk/id/local-authority-district/22UN,Technical & Procurement Services,H805 - Major Refurbishment of Heating,C200 - Main Contractor,15/02/2011,1042275-1,2375,2100155 - Blue Flame,KINGS QUAY ST
Tendring DC,http://statistics.data.gov.uk/id/local-authority-district/22UN,Technical & Procurement Services,H805 - Major Refurbishment of Heating,C200 - Main Contractor,02/02/2011,2080474-1,24562.07,2100155 - Blue Flame,Heater Refurbishment COntract 09/12
Tendring DC,http://statistics.data.gov.uk/id/local-authority-district/22UN,Technical & Procurement Services,5480 - Repair & Maintenance,2075 - Gas Service Contract Servicing/Testing (Domestic I,22/02/2011,2081246-1,594.56,2100155 - Blue Flame,Gas Service & Repairs North Area
Tendring DC,http://statistics.data.gov.uk/id/local-authority-district/22UN,Technical & Procurement Services,5480 - Repair & Maintenance,2076 - Gas Service Contract Other Refurbishment/Repairs (,22/02/2011,2081246-2,11815.67,2100155 - Blue Flame,Gas Service & Repairs North Area
Tendring DC,http://statistics.data.gov.uk/id/local-authority-district/22UN,Technical & Procurement Services,5480 - Repair & Maintenance,2073 - Smoke Alarm Service/Testing,22/02/2011,2081246-3,409.35,2100155 - Blue Flame,Gas Service & Repairs North Area
Tendring DC,http://statistics.data.gov.uk/id/local-authority-district/22UN,Technical & Procurement Services,H805 - Major Refurbishment of Heating,C200 - Main Contractor,22/02/2011,2081260-1,48034.12,2100155 - Blue Flame,Heater Refurb Contract
Tendring DC,http://statistics.data.gov.uk/id/local-authority-district/22UN,Housing Services,5140 - Homelessness,4683 - Other Homelessness Expenses,15/02/2011,2080912-1,650,2100195 - Bond Estates,Deposit Guarantee
Tendring DC,http://statistics.data.gov.uk/id/local-authority-district/22UN,Environmental Services,4840 - Recycling,5466 - Community Site Payments,08/02/2011,1042196-1,1221.52,2102522 - Brightlingsea Town Council,B/SEA COMMUNITY CENTRE
Tendring DC,http://statistics.data.gov.uk/id/local-authority-district/22UN,Leisure Services,5860 - Manningtree Sports Centre,2304 - Energy Costs - Electricity,15/02/2011,1042438-1,564.76,2100197 - British Gas Trading Ltd,JAN ELECTRIC
Tendring DC,http://statistics.data.gov.uk/id/local-authority-district/22UN,Leisure Services,6080 - Shops & Kiosks,2304 - Energy Costs - Electricity,15/02/2011,1042438-10,14.8,2100197 - British Gas Trading Ltd,JAN ELECTRIC
Tendring DC,http://statistics.data.gov.uk/id/local-authority-district/22UN,Leisure Services,5960 - Recreation Grounds,2304 - Energy Costs - Electricity,15/02/2011,1042438-11,36.96,2100197 - British Gas Trading Ltd,JAN ELECTRIC
Tendring DC,http://statistics.data.gov.uk/id/local-authority-district/22UN,Leisure Services,6080 - Shops & Kiosks,2304 - Energy Costs - Electricity,15/02/2011,1042438-12,65.14,2100197 - British Gas Trading Ltd,JAN ELECTRIC
Tendring DC,http://statistics.data.gov.uk/id/local-authority-district/22UN,Leisure Services,5960 - Recreation Grounds,2304 - Energy Costs - Electricity,15/02/2011,1042438-13,80.31,2100197 - British Gas Trading Ltd,JAN ELECTRIC
Tendring DC,http://statistics.data.gov.uk/id/local-authority-district/22UN,Leisure Services,5960 - Recreation Grounds,2304 - Energy Costs - Electricity,15/02/2011,1042438-14,46.18,2100197 - British Gas Trading Ltd,JAN ELECTRIC
Tendring DC,http://statistics.data.gov.uk/id/local-authority-district/22UN,Leisure Services,5960 - Recreation Grounds,2304 - Energy Costs - Electricity,15/02/2011,1042438-15,56.6,2100197 - British Gas Trading Ltd,JAN ELECTRIC
Tendring DC,http://statistics.data.gov.uk/id/local-authority-district/22UN,Leisure Services,6080 - Shops & Kiosks,2304 - Energy Costs - Electricity,15/02/2011,1042438-16,34.52,2100197 - British Gas Trading Ltd,JAN ELECTRIC
Tendring DC,http://statistics.data.gov.uk/id/local-authority-district/22UN,Leisure Services,1915 - Low Rd Depot,2304 - Energy Costs - Electricity,15/02/2011,1042438-17,34.9,2100197 - British Gas Trading Ltd,JAN ELECTRIC
Tendring DC,http://statistics.data.gov.uk/id/local-authority-district/22UN,Leisure Services,5960 - Recreation Grounds,2304 - Energy Costs - Electricity,15/02/2011,1042438-18,12.74,2100197 - British Gas Trading Ltd,JAN ELECTRIC
Tendring DC,http://statistics.data.gov.uk/id/local-authority-district/22UN,Leisure Services,5960 - Recreation Grounds,2304 - Energy Costs - Electricity,15/02/2011,1042438-19,20.79,2100197 - British Gas Trading Ltd,JAN ELECTRIC
Tendring DC,http://statistics.data.gov.uk/id/local-authority-district/22UN,Leisure Services,5960 - Recreation Grounds,2304 - Energy Costs - Electricity,15/02/2011,1042438-2,37.6,2100197 - British Gas Trading Ltd,JAN ELECTRIC
Tendring DC,http://statistics.data.gov.uk/id/local-authority-district/22UN,Leisure Services,5820 - Harwich Sports Centre,2304 - Energy Costs - Electricity,15/02/2011,1042438-20,433.5,2100197 - British Gas Trading Ltd,JAN ELECTRIC
Tendring DC,http://statistics.data.gov.uk/id/local-authority-district/22UN,Leisure Services,5960 - Recreation Grounds,2304 - Energy Costs - Electricity,15/02/2011,1042438-21,41.13,2100197 - British Gas Trading Ltd,JAN ELECTRIC
Tendring DC,http://statistics.data.gov.uk/id/local-authority-district/22UN,Leisure Services,5960 - Recreation Grounds,2304 - Energy Costs - Electricity,15/02/2011,1042438-22,38.08,2100197 - British Gas Trading Ltd,JAN ELECTRIC
Tendring DC,http://statistics.data.gov.uk/id/local-authority-district/22UN,Leisure Services,6000 - Beach Hut Sites,2304 - Energy Costs - Electricity,15/02/2011,1042438-23,19.16,2100197 - British Gas Trading Ltd,JAN ELECTRIC
Tendring DC,http://statistics.data.gov.uk/id/local-authority-district/22UN,Leisure Services,5960 - Recreation Grounds,2304 - Energy Costs - Electricity,15/02/2011,1042438-3,86.41,2100197 - British Gas Trading Ltd,JAN ELECTRIC
Tendring DC,http://statistics.data.gov.uk/id/local-authority-district/22UN,Leisure Services,6000 - Beach Hut Sites,2304 - Energy Costs - Electricity,15/02/2011,1042438-4,13.01,2100197 - British Gas Trading Ltd,JAN ELECTRIC
Tendring DC,http://statistics.data.gov.uk/id/local-authority-district/22UN,Leisure Services,5960 - Recreation Grounds,2304 - Energy Costs - Electricity,15/02/2011,1042438-5,26.97,2100197 - British Gas Trading Ltd,JAN ELECTRIC
Tendring DC,http://statistics.data.gov.uk/id/local-authority-district/22UN,Leisure Services,6040 - Misc Seafront Activities,2304 - Energy Costs - Electricity,15/02/2011,1042438-6,13.46,2100197 - British Gas Trading Ltd,JAN ELECTRIC
Tendring DC,http://statistics.data.gov.uk/id/local-authority-district/22UN,Leisure Services,7600 - Tourist Information Centres,2304 - Energy Costs - Electricity,15/02/2011,1042438-7,14.35,2100197 - British Gas Trading Ltd,JAN ELECTRIC
Tendring DC,http://statistics.data.gov.uk/id/local-authority-district/22UN,Leisure Services,6080 - Shops & Kiosks,2304 - Energy Costs - Electricity,15/02/2011,1042438-8,16.94,2100197 - British Gas Trading Ltd,JAN ELECTRIC
Tendring DC,http://statistics.data.gov.uk/id/local-authority-district/22UN,Leisure Services,6000 - Beach Hut Sites,2304 - Energy Costs - Electricity,15/02/2011,1042438-9,16.1,2100197 - British Gas Trading Ltd,JAN ELECTRIC
Tendring DC,http://statistics.data.gov.uk/id/local-authority-district/22UN,Community Services,6740 - Careline,2304 - Energy Costs - Electricity,02/02/2011,2080382-1,504.31,2100197 - British Gas Trading Ltd,British Gas - Electric
Tendring DC,http://statistics.data.gov.uk/id/local-authority-district/22UN,Community Services,6740 - Careline,2304 - Energy Costs - Electricity,02/02/2011,2080382-2,64.18,2100197 - British Gas Trading Ltd,British Gas - Electric
Tendring DC,http://statistics.data.gov.uk/id/local-authority-district/22UN,Community Services,6740 - Careline,2304 - Energy Costs - Electricity,02/02/2011,2080383-1,544.34,2100197 - British Gas Trading Ltd,British Gas - Electric
Tendring DC,http://statistics.data.gov.uk/id/local-authority-district/22UN,Community Services,6740 - Careline,2304 - Energy Costs - Electricity,02/02/2011,2080383-2,57.04,2100197 - British Gas Trading Ltd,British Gas - Electric
Tendring DC,http://statistics.data.gov.uk/id/local-authority-district/22UN,Community Services,6740 - Careline,2304 - Energy Costs - Electricity,02/02/2011,2080383-3,-29.91,2100197 - British Gas Trading Ltd,British Gas - Electric
Tendring DC,http://statistics.data.gov.uk/id/local-authority-district/22UN,Community Services,6740 - Careline,2304 - Energy Costs - Electricity,02/02/2011,2080384-1,1028.7,2100197 - British Gas Trading Ltd,British Gas - Electric
Tendring DC,http://statistics.data.gov.uk/id/local-authority-district/22UN,Community Services,6740 - Careline,2304 - Energy Costs - Electricity,02/02/2011,2080384-2,43.53,2100197 - British Gas Trading Ltd,British Gas - Electric
Tendring DC,http://statistics.data.gov.uk/id/local-authority-district/22UN,Community Services,6740 - Careline,2304 - Energy Costs - Electricity,02/02/2011,2080384-3,-351.82,2100197 - British Gas Trading Ltd,British Gas - Electric
Tendring DC,http://statistics.data.gov.uk/id/local-authority-district/22UN,Community Services,6740 - Careline,2304 - Energy Costs - Electricity,02/02/2011,2080384-4,-6.74,2100197 - British Gas Trading Ltd,British Gas - Electric
Tendring DC,http://statistics.data.gov.uk/id/local-authority-district/22UN,Human Resources and Customer Services,1880 - Office Accommodation Expenses,2304 - Energy Costs - Electricity,15/02/2011,2080934-1,100.99,2100197 - British Gas Trading Ltd,British Gas Jan 11
Tendring DC,http://statistics.data.gov.uk/id/local-authority-district/22UN,Human Resources and Customer Services,1880 - Office Accommodation Expenses,2304 - Energy Costs - Electricity,15/02/2011,2080934-2,129.21,2100197 - British Gas Trading Ltd,British Gas Jan 11
Tendring DC,http://statistics.data.gov.uk/id/local-authority-district/22UN,Human Resources and Customer Services,1880 - Office Accommodation Expenses,2304 - Energy Costs - Electricity,15/02/2011,2080934-3,110.95,2100197 - British Gas Trading Ltd,British Gas Jan 11
Tendring DC,http://statistics.data.gov.uk/id/local-authority-district/22UN,Human Resources and Customer Services,1880 - Office Accommodation Expenses,2304 - Energy Costs - Electricity,15/02/2011,2080934-4,111.35,2100197 - British Gas Trading Ltd,British Gas Jan 11
Tendring DC,http://statistics.data.gov.uk/id/local-authority-district/22UN,Human Resources and Customer Services,1880 - Office Accommodation Expenses,2304 - Energy Costs - Electricity,15/02/2011,2080934-5,104.51,2100197 - British Gas Trading Ltd,British Gas Jan 11
Tendring DC,http://statistics.data.gov.uk/id/local-authority-district/22UN,Human Resources and Customer Services,1880 - Office Accommodation Expenses,2304 - Energy Costs - Electricity,15/02/2011,2080934-6,154.11,2100197 - British Gas Trading Ltd,British Gas Jan 11
Tendring DC,http://statistics.data.gov.uk/id/local-authority-district/22UN,Housing Services,5360 - Sheltered Units,2304 - Energy Costs - Electricity,22/02/2011,2081164-1,485.44,2100197 - British Gas Trading Ltd,BG Jan 2011
Tendring DC,http://statistics.data.gov.uk/id/local-authority-district/22UN,Housing Services,5340 - Communal Central Heating,2304 - Energy Costs - Electricity,22/02/2011,2081164-2,1851.48,2100197 - British Gas Trading Ltd,BG Jan 2011
Tendring DC,http://statistics.data.gov.uk/id/local-authority-district/22UN,Housing Services,5440 - Communal Electricity,2304 - Energy Costs - Electricity,22/02/2011,2081164-3,7586.13,2100197 - British Gas Trading Ltd,BG Jan 2011
Tendring DC,http://statistics.data.gov.uk/id/local-authority-district/22UN,Housing Services,5440 - Communal Electricity,2304 - Energy Costs - Electricity,22/02/2011,2081164-4,859.82,2100197 - British Gas Trading Ltd,BG Jan 2011
Tendring DC,http://statistics.data.gov.uk/id/local-authority-district/22UN,Housing Services,5340 - Communal Central Heating,2304 - Energy Costs - Electricity,22/02/2011,2081164-5,-233.69,2100197 - British Gas Trading Ltd,BG Jan 2011
Tendring DC,http://statistics.data.gov.uk/id/local-authority-district/22UN,Corporate Performance,1760 - IT Direct Service Costs,4715 - Data Communication Charge,22/02/2011,1042519-1,1728.57,2100168 - British Telecommunications plc,36083080S023
Tendring DC,http://statistics.data.gov.uk/id/local-authority-district/22UN,Human Resources and Customer Services,1840 - Central Telephone Service,4710 - Telephones - Charges,22/02/2011,2081168-1,4835.02,2100168 - British Telecommunications plc,BT Bills 686000
Tendring DC,http://statistics.data.gov.uk/id/local-authority-district/22UN,Human Resources and Customer Services,1840 - Central Telephone Service,4710 - Telephones - Charges,22/02/2011,2081168-2,1472.24,2100168 - British Telecommunications plc,BT Bills 686000
Tendring DC,http://statistics.data.gov.uk/id/local-authority-district/22UN,Technical & Procurement Services,8025 - Car Parks - Off St,4597 - Hired Services - Payments to Contractors,15/02/2011,2081031-1,1200,2100198 - Brown Advertising and Design,P & D Tickets
Tendring DC,http://statistics.data.gov.uk/id/local-authority-district/22UN,Leisure Services,5460 - Maintenance Of Grounds,2110 - Playground Maintenance,15/02/2011,1042446-1,917.49,2100109 - Bruce Landscapes,BRUCE - JAN 11
Tendring DC,http://statistics.data.gov.uk/id/local-authority-district/22UN,Leisure Services,5980 - Playgrounds,4052 - Playground Equipment,15/02/2011,1042446-2,1907.5,2100109 - Bruce Landscapes,BRUCE - JAN 11
Tendring DC,http://statistics.data.gov.uk/id/local-authority-district/22UN,Leisure Services,4560 - Crematorium,2115 - Grounds Maintenance External Contractors,08/02/2011,2080727-1,12890,2100109 - Bruce Landscapes,"Eagle Ave, Play Area"
Tendring DC,http://statistics.data.gov.uk/id/local-authority-district/22UN,Leisure Services,5980 - Playgrounds,4052 - Playground Equipment,22/02/2011,2081263-1,3650,2100109 - Bruce Landscapes,Bruce 238/240
Tendring DC,http://statistics.data.gov.uk/id/local-authority-district/22UN,Leisure Services,5460 - Maintenance Of Grounds,2110 - Playground Maintenance,22/02/2011,2081263-2,375,2100109 - Bruce Landscapes,Bruce 238/240
Tendring DC,http://statistics.data.gov.uk/id/local-authority-district/22UN,Human Resources and Customer Services,1840 - Central Telephone Service,4752 - Computer - Operating Systems Maintenance,02/02/2011,1042068-1,10395.23,2100119 - BT Global Services,BT GLOBAL
Tendring DC,http://statistics.data.gov.uk/id/local-authority-district/22UN,Human Resources and Customer Services,C322 - Upgrade of Contact Centre software,C276 - Licences for Software,02/02/2011,1042069-1,19995,2100119 - BT Global Services,BT GLOBAL (CTH+WLY)
Tendring DC,http://statistics.data.gov.uk/id/local-authority-district/22UN,Human Resources and Customer Services,1422 - Contact Centre,4752 - Computer - Operating Systems Maintenance,02/02/2011,1042069-2,72732,2100119 - BT Global Services,BT GLOBAL (CTH+WLY)
Tendring DC,http://statistics.data.gov.uk/id/local-authority-district/22UN,Human Resources and Customer Services,1840 - Central Telephone Service,4752 - Computer - Operating Systems Maintenance,02/02/2011,1042069-3,7061,2100119 - BT Global Services,BT GLOBAL (CTH+WLY)
Tendring DC,http://statistics.data.gov.uk/id/local-authority-district/22UN,Leisure Services,5820 - Harwich Sports Centre,4597 - Hired Services - Payments to Contractors,08/02/2011,1042111-1,544.41,2100280 - C H Lindsey & Son Ltd,
Tendring DC,http://statistics.data.gov.uk/id/local-authority-district/22UN,Leisure Services,8510 - Dovercourt Swimming Pool & A.W.F.,4400 - Maintenance Under Service Agreements,08/02/2011,1042179-1,1321.8,2100280 - C H Lindsey & Son Ltd,
Tendring DC,http://statistics.data.gov.uk/id/local-authority-district/22UN,Leisure Services,8520 - Frinton & Walton Swimming Pool,4400 - Maintenance Under Service Agreements,08/02/2011,1042179-2,1321.8,2100280 - C H Lindsey & Son Ltd,
Tendring DC,http://statistics.data.gov.uk/id/local-authority-district/22UN,Leisure Services,8540 - Leisure Centre Clacton,4400 - Maintenance Under Service Agreements,08/02/2011,1042179-3,1321.8,2100280 - C H Lindsey & Son Ltd,
Tendring DC,http://statistics.data.gov.uk/id/local-authority-district/22UN,Leisure Services,5880 - Management Of Sport & Leisure Facilities,2100 - Building Repairs,15/02/2011,1042258-1,2081,2100280 - C H Lindsey & Son Ltd,FWSP
Tendring DC,http://statistics.data.gov.uk/id/local-authority-district/22UN,Leisure Services,5880 - Management Of Sport & Leisure Facilities,2100 - Building Repairs,15/02/2011,1042259-1,1995,2100280 - C H Lindsey & Son Ltd,FWSP
Tendring DC,http://statistics.data.gov.uk/id/local-authority-district/22UN,Leisure Services,8510 - Dovercourt Swimming Pool & A.W.F.,2100 - Building Repairs,15/02/2011,2080963-1,798,2100280 - C H Lindsey & Son Ltd,Dovercourt
Tendring DC,http://statistics.data.gov.uk/id/local-authority-district/22UN,Leisure Services,8520 - Frinton & Walton Swimming Pool,2100 - Building Repairs,15/02/2011,2081022-1,1034.85,2100280 - C H Lindsey & Son Ltd,Frinton
Tendring DC,http://statistics.data.gov.uk/id/local-authority-district/22UN,Leisure Services,8520 - Frinton & Walton Swimming Pool,4400 - Maintenance Under Service Agreements,15/02/2011,2081023-1,567.34,2100280 - C H Lindsey & Son Ltd,Lindsey FWSP
Tendring DC,http://statistics.data.gov.uk/id/local-authority-district/22UN,Leisure Services,8510 - Dovercourt Swimming Pool & A.W.F.,2100 - Building Repairs,15/02/2011,2081028-1,1777.94,2100280 - C H Lindsey & Son Ltd,Dovercourt Pool
Tendring DC,http://statistics.data.gov.uk/id/local-authority-district/22UN,Technical & Procurement Services,8025 - Car Parks - Off St,4406 - Repair & Maintenance of Machines - Car Parks,02/02/2011,2080423-1,221.57,2100241 - Cale Briparc Ltd,Cale Callout
Tendring DC,http://statistics.data.gov.uk/id/local-authority-district/22UN,Technical & Procurement Services,8025 - Car Parks - Off St,4406 - Repair & Maintenance of Machines - Car Parks,02/02/2011,2080423-2,472.96,2100241 - Cale Briparc Ltd,Cale Callout
Tendring DC,http://statistics.data.gov.uk/id/local-authority-district/22UN,Housing Services,5480 - Repair & Maintenance,4044 - Building & Safety Equipment,15/02/2011,2080871-1,704,2107321 - Campbell Associates,Sound Level Meter Options
Tendring DC,http://statistics.data.gov.uk/id/local-authority-district/22UN,Planning Services,4460 - Planning Policy and Conservation,5446 - Local Development Frame Workl/Local Plan,08/02/2011,2080514-1,1230.6,2100291 - Canon (UK) Ltd,DW Policy Photocopier 1/11/10 - 31/1/11
Tendring DC,http://statistics.data.gov.uk/id/local-authority-district/22UN,Financial Services,9900 - General Fund Balance Sheet,B879 - Charges made by Merchant Acquirer,09/02/2011,2080776-1,216.36,2100202 - Capita Business Services Ltd,Capita Dec 10
Tendring DC,http://statistics.data.gov.uk/id/local-authority-district/22UN,Financial Services,9900 - General Fund Balance Sheet,B879 - Charges made by Merchant Acquirer,09/02/2011,2080776-2,202.37,2100202 - Capita Business Services Ltd,Capita Dec 10
Tendring DC,http://statistics.data.gov.uk/id/local-authority-district/22UN,Financial Services,9900 - General Fund Balance Sheet,B879 - Charges made by Merchant Acquirer,09/02/2011,2080776-3,199.44,2100202 - Capita Business Services Ltd,Capita Dec 10
Tendring DC,http://statistics.data.gov.uk/id/local-authority-district/22UN,Financial Services,9900 - General Fund Balance Sheet,B879 - Charges made by Merchant Acquirer,09/02/2011,2080776-4,252.09,2100202 - Capita Business Services Ltd,Capita Dec 10
Tendring DC,http://statistics.data.gov.uk/id/local-authority-district/22UN,Financial Services,9900 - General Fund Balance Sheet,B879 - Charges made by Merchant Acquirer,09/02/2011,2080776-5,205.92,2100202 - Capita Business Services Ltd,Capita Dec 10
Tendring DC,http://statistics.data.gov.uk/id/local-authority-district/22UN,Financial Services,9900 - General Fund Balance Sheet,B879 - Charges made by Merchant Acquirer,09/02/2011,2080776-6,122.49,2100202 - Capita Business Services Ltd,Capita Dec 10
Tendring DC,http://statistics.data.gov.uk/id/local-authority-district/22UN,Financial Services,9900 - General Fund Balance Sheet,B879 - Charges made by Merchant Acquirer,09/02/2011,2080776-7,143.82,2100202 - Capita Business Services Ltd,Capita Dec 10
Tendring DC,http://statistics.data.gov.uk/id/local-authority-district/22UN,Financial Services,9900 - General Fund Balance Sheet,B879 - Charges made by Merchant Acquirer,09/02/2011,2080776-8,88.65,2100202 - Capita Business Services Ltd,Capita Dec 10
Tendring DC,http://statistics.data.gov.uk/id/local-authority-district/22UN,Community Services,1000 - Community Services,1700 - Training - Courses,08/02/2011,2080670-1,520,2110894 - Centre for Strategy and Communication,Office Training
Tendring DC,http://statistics.data.gov.uk/id/local-authority-district/22UN,Community Services,7100 - Community Health/Safety,1700 - Training - Courses,08/02/2011,2080670-2,160,2110894 - Centre for Strategy and Communication,Office Training
Tendring DC,http://statistics.data.gov.uk/id/local-authority-district/22UN,Housing Services,5140 - Homelessness,4683 - Other Homelessness Expenses,15/02/2011,2080914-1,725,REDACTED PERSONAL DATA,Deposit guarantee
Tendring DC,http://statistics.data.gov.uk/id/local-authority-district/22UN,Leisure Services,C115 - Vehicle Replacement,C103 - Other Acquisition - leasing for vehicles,22/02/2011,1042517-1,15070,2100294 - Chelmsford Grass Machinery Ltd,DUMPER
Tendring DC,http://statistics.data.gov.uk/id/local-authority-district/22UN,Leisure Services,C115 - Vehicle Replacement,C103 - Other Acquisition - leasing for vehicles,22/02/2011,1042518-1,34593.75,2100294 - Chelmsford Grass Machinery Ltd,TRACTOR
Tendring DC,http://statistics.data.gov.uk/id/local-authority-district/22UN,Technical & Procurement Services,8100 - Engineering Services,4080 - Materials & Consumables,15/02/2011,2080950-1,966.2,2100205 - Chelmsford Safety Supplies,PPE
Tendring DC,http://statistics.data.gov.uk/id/local-authority-district/22UN,Technical & Procurement Services,8100 - Engineering Services,4080 - Materials & Consumables,15/02/2011,2080951-1,3175.2,2100205 - Chelmsford Safety Supplies,PPE
Tendring DC,http://statistics.data.gov.uk/id/local-authority-district/22UN,Housing Services,5140 - Homelessness,4680 - Bed & Breakfast Accommodation,22/02/2011,2081106-1,40,2110352 - Chequers Hotel Ltd,03/1/11 - 16/1/11
Tendring DC,http://statistics.data.gov.uk/id/local-authority-district/22UN,Housing Services,5140 - Homelessness,4680 - Bed & Breakfast Accommodation,22/02/2011,2081106-2,320,2110352 - Chequers Hotel Ltd,03/1/11 - 16/1/11
Tendring DC,http://statistics.data.gov.uk/id/local-authority-district/22UN,Housing Services,5140 - Homelessness,4680 - Bed & Breakfast Accommodation,22/02/2011,2081106-3,200,2110352 - Chequers Hotel Ltd,03/1/11 - 16/1/11
Tendring DC,http://statistics.data.gov.uk/id/local-authority-district/22UN,Housing Services,5140 - Homelessness,4680 - Bed & Breakfast Accommodation,22/02/2011,2081112-1,760,2110352 - Chequers Hotel Ltd,HS953919
Tendring DC,http://statistics.data.gov.uk/id/local-authority-district/22UN,Benefits & Revenues,1580 - Benefits & Revenues,1700 - Training - Courses,02/02/2011,2080450-1,620,2109394 - CIPFA Business Ltd,Cipfa Consortium Delegates 2
Tendring DC,http://statistics.data.gov.uk/id/local-authority-district/22UN,Leisure Services,6160 - Princes Theatre,4622 - Hired Services - Artistes and Production Companies,15/02/2011,1042346-1,819,2110847 - Clacton Concert Orchestra,CLACTON CONCERT ORCHESTRA
Tendring DC,http://statistics.data.gov.uk/id/local-authority-district/22UN,Financial Services,8700 - Small Projects,4900 - Grants,08/02/2011,1042212-1,350,2102697 - Clacton on Sea Bowls Club,PURCHASE A 2 MAT HANDLING UNIT
Tendring DC,http://statistics.data.gov.uk/id/local-authority-district/22UN,Financial Services,8700 - Small Projects,4900 - Grants,08/02/2011,1042212-2,350,2102697 - Clacton on Sea Bowls Club,PURCHASE A 2 MAT HANDLING UNIT
Tendring DC,http://statistics.data.gov.uk/id/local-authority-district/22UN,Technical & Procurement Services,H730 - Energy & Water Conservation,C200 - Main Contractor,02/02/2011,2080358-1,1358.9,2108261 - Climate Energy,Insulation Works
Tendring DC,http://statistics.data.gov.uk/id/local-authority-district/22UN,Housing Services,5260 - Rent Collection And Accounting,4460 - Legal & Professional Expenses,01/02/2011,1042476-1,595,2100269 - Co operative Bank plc,POS JAN 2011
Tendring DC,http://statistics.data.gov.uk/id/local-authority-district/22UN,Benefits & Revenues,1580 - Benefits & Revenues,4462 - Legal Fees incl. Bailiffs re debt recovery,01/02/2011,1042478-1,2541,2100269 - Co operative Bank plc,HM COURT AND CAR PARK
Tendring DC,http://statistics.data.gov.uk/id/local-authority-district/22UN,Benefits & Revenues,1580 - Benefits & Revenues,3304 - Car Allowances - Parking Fees,01/02/2011,1042478-2,5.17,2100269 - Co operative Bank plc,HM COURT AND CAR PARK
Tendring DC,http://statistics.data.gov.uk/id/local-authority-district/22UN,Benefits & Revenues,1580 - Benefits & Revenues,4462 - Legal Fees incl. Bailiffs re debt recovery,01/02/2011,1042478-3,2,2100269 - Co operative Bank plc,HM COURT AND CAR PARK
Tendring DC,http://statistics.data.gov.uk/id/local-authority-district/22UN,Financial Services,1580 - Benefits & Revenues,5190 - Bank Commission Charges,09/02/2011,2080783-1,1696.39,2100269 - Co operative Bank plc,Quarterly Commission and Interest
Tendring DC,http://statistics.data.gov.uk/id/local-authority-district/22UN,Financial Services,6740 - Careline,5190 - Bank Commission Charges,09/02/2011,2080783-2,84.8,2100269 - Co operative Bank plc,Quarterly Commission and Interest
Tendring DC,http://statistics.data.gov.uk/id/local-authority-district/22UN,Financial Services,6620 - Corporate Management - General,5190 - Bank Commission Charges,09/02/2011,2080783-3,3961.21,2100269 - Co operative Bank plc,Quarterly Commission and Interest
Tendring DC,http://statistics.data.gov.uk/id/local-authority-district/22UN,Financial Services,8901 - Interest Payable and similar charges,7570 - Interest Payments,09/02/2011,2080783-4,62.51,2100269 - Co operative Bank plc,Quarterly Commission and Interest
Tendring DC,http://statistics.data.gov.uk/id/local-authority-district/22UN,Financial Services,5260 - Rent Collection And Accounting,5190 - Bank Commission Charges,09/02/2011,2080783-5,44.73,2100269 - Co operative Bank plc,Quarterly Commission and Interest
Tendring DC,http://statistics.data.gov.uk/id/local-authority-district/22UN,Financial Services,1580 - Benefits & Revenues,5190 - Bank Commission Charges,09/02/2011,2080783-6,907.84,2100269 - Co operative Bank plc,Quarterly Commission and Interest
Tendring DC,http://statistics.data.gov.uk/id/local-authority-district/22UN,Financial Services,5880 - Management Of Sport & Leisure Facilities,5190 - Bank Commission Charges,09/02/2011,2080783-7,97.26,2100269 - Co operative Bank plc,Quarterly Commission and Interest
Tendring DC,http://statistics.data.gov.uk/id/local-authority-district/22UN,Technical & Procurement Services,1610 - Car Parks Service Unit Account,1700 - Training - Courses,02/02/2011,2080441-1,750,2110212 - Colchester Borough Council,Accreditation
Tendring DC,http://statistics.data.gov.uk/id/local-authority-district/22UN,Planning Services,4460 - Planning Policy and Conservation,5446 - Local Development Frame Workl/Local Plan,22/02/2011,2081055-1,1779,2110212 - Colchester Borough Council,DW 1-6 Habitat Reg Assesment
Tendring DC,http://statistics.data.gov.uk/id/local-authority-district/22UN,Leisure Services,4540 - Cemeteries,2100 - Building Repairs,08/02/2011,2080649-1,1373.58,2100312 - Collier & Catchpole Ltd,
Tendring DC,http://statistics.data.gov.uk/id/local-authority-district/22UN,Leisure Services,4540 - Cemeteries,2100 - Building Repairs,08/02/2011,2080649-2,35.22,2100312 - Collier & Catchpole Ltd,
Tendring DC,http://statistics.data.gov.uk/id/local-authority-district/22UN,Leisure Services,5460 - Maintenance Of Grounds,2110 - Playground Maintenance,22/02/2011,2081092-1,854,2108930 - Colt Press Ltd,PLay Area Brochure Print
Tendring DC,http://statistics.data.gov.uk/id/local-authority-district/22UN,Housing Services,5480 - Repair & Maintenance,2075 - Gas Service Contract Servicing/Testing (Domestic I,15/02/2011,1042443-1,2636.29,2100314 - Cooper & Brome (Plumbing & Heating) Ltd,GAS SERVICE & REPAIRS-SOUTH
Tendring DC,http://statistics.data.gov.uk/id/local-authority-district/22UN,Housing Services,5480 - Repair & Maintenance,2076 - Gas Service Contract Other Refurbishment/Repairs (,15/02/2011,1042443-2,15337.16,2100314 - Cooper & Brome (Plumbing & Heating) Ltd,GAS SERVICE & REPAIRS-SOUTH
Tendring DC,http://statistics.data.gov.uk/id/local-authority-district/22UN,Housing Services,5480 - Repair & Maintenance,2073 - Smoke Alarm Service/Testing,15/02/2011,1042443-3,958.86,2100314 - Cooper & Brome (Plumbing & Heating) Ltd,GAS SERVICE & REPAIRS-SOUTH
Tendring DC,http://statistics.data.gov.uk/id/local-authority-district/22UN,Housing Services,5480 - Repair & Maintenance,2006 - Responsive Maintenance - Plumbing,22/02/2011,1042466-1,672.38,2100314 - Cooper & Brome (Plumbing & Heating) Ltd,109582/2
Tendring DC,http://statistics.data.gov.uk/id/local-authority-district/22UN,Technical & Procurement Services,5480 - Repair & Maintenance,2077 - Gas Service Contract  Servicing/Testing (Large Sca,22/02/2011,2081247-1,1392.22,2100314 - Cooper & Brome (Plumbing & Heating) Ltd,Large Scale Boilers Contract 09/12
Tendring DC,http://statistics.data.gov.uk/id/local-authority-district/22UN,Technical & Procurement Services,5480 - Repair & Maintenance,2078 - Gas Service Contract Other Refurbishment/Repairs (,22/02/2011,2081247-2,1939.99,2100314 - Cooper & Brome (Plumbing & Heating) Ltd,Large Scale Boilers Contract 09/12
Tendring DC,http://statistics.data.gov.uk/id/local-authority-district/22UN,Technical & Procurement Services,C280 - Clacton Regeneration CCTV works,C253 - Purchase of CCTV equipment,15/02/2011,2080865-1,620,2100183 - CR Services,CCTV Camera
Tendring DC,http://statistics.data.gov.uk/id/local-authority-district/22UN,Leisure Services,5920 - Open Spaces,2108 - Grounds Maintenance  Horticultural Svs Ad Hoc,02/02/2011,1042044-1,875,2100386 - D A Cant Ltd,MUSWELL WALK FOOTPATH
Tendring DC,http://statistics.data.gov.uk/id/local-authority-district/22UN,Technical & Procurement Services,H860 - Disabled Adaptations,C200 - Main Contractor,08/02/2011,2080617-1,4795,2100386 - D A Cant Ltd,REDACTED PERSONAL DATA
Tendring DC,http://statistics.data.gov.uk/id/local-authority-district/22UN,Technical & Procurement Services,H720 - Environmental Improvements,C200 - Main Contractor,08/02/2011,2080618-1,7831,2100386 - D A Cant Ltd,Langham Drive
Tendring DC,http://statistics.data.gov.uk/id/local-authority-district/22UN,Technical & Procurement Services,C610 - Holland Haven Sea Wall - Gunfleet Boating Club frontage,C200 - Main Contractor,15/02/2011,2080862-1,589.5,2107898 - Daniel Connal Partnership,Holland Haven
Tendring DC,http://statistics.data.gov.uk/id/local-authority-district/22UN,Technical & Procurement Services,C279 - Coastal Pathfinder - Crag Walk,C200 - Main Contractor,15/02/2011,2080863-1,643,2107898 - Daniel Connal Partnership,Crag Walk
Tendring DC,http://statistics.data.gov.uk/id/local-authority-district/22UN,Environmental Services,4820 - Public Conveniences,2100 - Building Repairs,22/02/2011,1042557-1,2595,2108384 - DC Drains & Plumbing Services,RE DEC
Tendring DC,http://statistics.data.gov.uk/id/local-authority-district/22UN,Environmental Services,4820 - Public Conveniences,2100 - Building Repairs,22/02/2011,1042558-1,4995,2108384 - DC Drains & Plumbing Services,ROOF REFURB
Tendring DC,http://statistics.data.gov.uk/id/local-authority-district/22UN,Human Resources and Customer Services,1880 - Office Accommodation Expenses,2100 - Building Repairs,08/02/2011,2080652-1,1500,2108384 - DC Drains & Plumbing Services,D C Drains
Tendring DC,http://statistics.data.gov.uk/id/local-authority-district/22UN,Housing Services,9920 - HRA Balance Sheet,B505 - ODPM Capital Receipts Pooling Creditor,09/02/2011,2080772-1,503.45,2100432 - DCLG,Housing Capital Receipts Pooling Payment
Tendring DC,http://statistics.data.gov.uk/id/local-authority-district/22UN,Financial Services,9940 - Collection Fund Balance Sheet,B244 - CLG - NNDR Balance,09/02/2011,2080779-1,1131748,2100432 - DCLG,NNDR and RSG
Tendring DC,http://statistics.data.gov.uk/id/local-authority-district/22UN,Financial Services,8985 - Redistributed National Non-Domestic Rate Income,9893 - Redistributed National Non-Domestic Rate Income,09/02/2011,2080779-2,-588951,2100432 - DCLG,NNDR and RSG
Tendring DC,http://statistics.data.gov.uk/id/local-authority-district/22UN,Financial Services,9940 - Collection Fund Balance Sheet,B244 - CLG - NNDR Balance,09/02/2011,2080780-1,1131749,2100432 - DCLG,NNDR and RSG
Tendring DC,http://statistics.data.gov.uk/id/local-authority-district/22UN,Financial Services,8985 - Redistributed National Non-Domestic Rate Income,9893 - Redistributed National Non-Domestic Rate Income,09/02/2011,2080780-2,-588951,2100432 - DCLG,NNDR and RSG
Tendring DC,http://statistics.data.gov.uk/id/local-authority-district/22UN,Leisure Services,4560 - Crematorium,4597 - Hired Services - Payments to Contractors,08/02/2011,2080500-1,2640,"2105834 - Drs Cavenagh, Hunt, Letton & Bhatti",Medical Referee Monthly Fees
Tendring DC,http://statistics.data.gov.uk/id/local-authority-district/22UN,Environmental Services,H940 - Emergency Repairs Grant,C400 - Grant payments,22/02/2011,2081126-1,1088.32,2108831 - Eaga PLC,"Flat 1, 1 Severn Road"
Tendring DC,http://statistics.data.gov.uk/id/local-authority-district/22UN,Leisure Services,8520 - Frinton & Walton Swimming Pool,4081 - Chemicals,08/02/2011,1042114-1,928.6,2100433 - East Essex Pool Care,EEPC FWSP
Tendring DC,http://statistics.data.gov.uk/id/local-authority-district/22UN,Leisure Services,8520 - Frinton & Walton Swimming Pool,2100 - Building Repairs,08/02/2011,1042117-1,527.71,2100433 - East Essex Pool Care,EEPC FWSP
Tendring DC,http://statistics.data.gov.uk/id/local-authority-district/22UN,Leisure Services,8540 - Leisure Centre Clacton,4081 - Chemicals,08/02/2011,1042118-1,542.4,2100433 - East Essex Pool Care,
Tendring DC,http://statistics.data.gov.uk/id/local-authority-district/22UN,Leisure Services,8540 - Leisure Centre Clacton,4400 - Maintenance Under Service Agreements,02/02/2011,2080433-1,315,2100433 - East Essex Pool Care,
Tendring DC,http://statistics.data.gov.uk/id/local-authority-district/22UN,Leisure Services,8540 - Leisure Centre Clacton,2100 - Building Repairs,02/02/2011,2080433-2,226.5,2100433 - East Essex Pool Care,
Tendring DC,http://statistics.data.gov.uk/id/local-authority-district/22UN,Leisure Services,8510 - Dovercourt Swimming Pool & A.W.F.,4081 - Chemicals,08/02/2011,2080577-1,595.45,2100433 - East Essex Pool Care,Dovercourt Pool
Tendring DC,http://statistics.data.gov.uk/id/local-authority-district/22UN,Leisure Services,8530 - Brightlingsea Swimming Pool,2100 - Building Repairs,08/02/2011,2080578-1,1146.53,2100433 - East Essex Pool Care,
Tendring DC,http://statistics.data.gov.uk/id/local-authority-district/22UN,Leisure Services,8510 - Dovercourt Swimming Pool & A.W.F.,2304 - Energy Costs - Electricity,15/02/2011,2080806-1,262.31,2105146 - EDF Energy 1 Ltd,Dovercourt Pool
Tendring DC,http://statistics.data.gov.uk/id/local-authority-district/22UN,Leisure Services,8510 - Dovercourt Swimming Pool & A.W.F.,2304 - Energy Costs - Electricity,15/02/2011,2080806-2,2448.83,2105146 - EDF Energy 1 Ltd,Dovercourt Pool
Tendring DC,http://statistics.data.gov.uk/id/local-authority-district/22UN,Leisure Services,8510 - Dovercourt Swimming Pool & A.W.F.,2304 - Energy Costs - Electricity,15/02/2011,2080806-3,0.01,2105146 - EDF Energy 1 Ltd,Dovercourt Pool
Tendring DC,http://statistics.data.gov.uk/id/local-authority-district/22UN,Human Resources and Customer Services,1880 - Office Accommodation Expenses,2304 - Energy Costs - Electricity,15/02/2011,2080828-1,467.75,2105146 - EDF Energy 1 Ltd,EDF Jan 11
Tendring DC,http://statistics.data.gov.uk/id/local-authority-district/22UN,Human Resources and Customer Services,1880 - Office Accommodation Expenses,2304 - Energy Costs - Electricity,15/02/2011,2080828-2,4366.71,2105146 - EDF Energy 1 Ltd,EDF Jan 11
Tendring DC,http://statistics.data.gov.uk/id/local-authority-district/22UN,Leisure Services,8540 - Leisure Centre Clacton,2304 - Energy Costs - Electricity,15/02/2011,2080968-1,646.06,2105146 - EDF Energy 1 Ltd,January
Tendring DC,http://statistics.data.gov.uk/id/local-authority-district/22UN,Leisure Services,8540 - Leisure Centre Clacton,2304 - Energy Costs - Electricity,15/02/2011,2080968-2,6029.85,2105146 - EDF Energy 1 Ltd,January
Tendring DC,http://statistics.data.gov.uk/id/local-authority-district/22UN,Environmental Services,H941 - Decent Homes Assistance (Owner/Occupier),C401 - Loan,08/02/2011,2080715-1,1670,2110436 - Energy-Wyse Electrical,REDACTED PERSONAL DATA
Tendring DC,http://statistics.data.gov.uk/id/local-authority-district/22UN,Leisure Services,5860 - Manningtree Sports Centre,4040 - Equipment & Tools,08/02/2011,1042108-1,515,2109840 - Entre-Prises (UK) Ltd,
Tendring DC,http://statistics.data.gov.uk/id/local-authority-district/22UN,Housing Services,5480 - Repair & Maintenance,2017 - Mechanical Equipment /Extract Fans,22/02/2011,1042465-1,544.53,2100572 - Envirovent Ltd,105986/2
Tendring DC,http://statistics.data.gov.uk/id/local-authority-district/22UN,Technical & Procurement Services,4260 - Highways TDC - Private Street Lighting,2304 - Energy Costs - Electricity,22/02/2011,2081237-1,63.79,2107644 - Eon,Amenity Lighting
Tendring DC,http://statistics.data.gov.uk/id/local-authority-district/22UN,Technical & Procurement Services,7380 - Industrial Estates,2304 - Energy Costs - Electricity,22/02/2011,2081237-10,36.34,2107644 - Eon,Amenity Lighting
Tendring DC,http://statistics.data.gov.uk/id/local-authority-district/22UN,Technical & Procurement Services,6040 - Misc Seafront Activities,2304 - Energy Costs - Electricity,22/02/2011,2081237-2,41.83,2107644 - Eon,Amenity Lighting
Tendring DC,http://statistics.data.gov.uk/id/local-authority-district/22UN,Technical & Procurement Services,8025 - Car Parks - Off St,2304 - Energy Costs - Electricity,22/02/2011,2081237-3,19.14,2107644 - Eon,Amenity Lighting
Tendring DC,http://statistics.data.gov.uk/id/local-authority-district/22UN,Technical & Procurement Services,5450 - Estate Lighting,2304 - Energy Costs - Electricity,22/02/2011,2081237-4,25.17,2107644 - Eon,Amenity Lighting
Tendring DC,http://statistics.data.gov.uk/id/local-authority-district/22UN,Technical & Procurement Services,7380 - Industrial Estates,2304 - Energy Costs - Electricity,22/02/2011,2081237-5,3.89,2107644 - Eon,Amenity Lighting
Tendring DC,http://statistics.data.gov.uk/id/local-authority-district/22UN,Technical & Procurement Services,4260 - Highways TDC - Private Street Lighting,2304 - Energy Costs - Electricity,22/02/2011,2081237-6,595.38,2107644 - Eon,Amenity Lighting
Tendring DC,http://statistics.data.gov.uk/id/local-authority-district/22UN,Technical & Procurement Services,6040 - Misc Seafront Activities,2304 - Energy Costs - Electricity,22/02/2011,2081237-7,390.38,2107644 - Eon,Amenity Lighting
Tendring DC,http://statistics.data.gov.uk/id/local-authority-district/22UN,Technical & Procurement Services,8025 - Car Parks - Off St,2304 - Energy Costs - Electricity,22/02/2011,2081237-8,178.62,2107644 - Eon,Amenity Lighting
Tendring DC,http://statistics.data.gov.uk/id/local-authority-district/22UN,Technical & Procurement Services,5450 - Estate Lighting,2304 - Energy Costs - Electricity,22/02/2011,2081237-9,234.9,2107644 - Eon,Amenity Lighting
Tendring DC,http://statistics.data.gov.uk/id/local-authority-district/22UN,Leisure Services,5940 - Nature Conservation,4597 - Hired Services - Payments to Contractors,15/02/2011,2080940-1,994,2102447 - Ernest Doe & Sons Ltd,Chainsaws
Tendring DC,http://statistics.data.gov.uk/id/local-authority-district/22UN,Corporate Performance,C410 - Corporate roll out of GIS,C275 - Hardware,22/02/2011,2081119-1,4000,2100458 - ESRI (UK) Ltd,Local View Imp
Tendring DC,http://statistics.data.gov.uk/id/local-authority-district/22UN,Regeneration Services,7440 - Industrial Properties,6000 - ECC Lawford/Manningtree Redevelopment,22/02/2011,1042481-1,872,2100498 - Essex County Council,YEAR 2010/11
Tendring DC,http://statistics.data.gov.uk/id/local-authority-district/22UN,Environmental Services,4880 - Refuse Collection,6300 - Contract Payment,02/02/2011,2080417-1,1237.99,2100498 - Essex County Council,ECC - Trade Waste
Tendring DC,http://statistics.data.gov.uk/id/local-authority-district/22UN,Financial Services,9880 - Collection Fund - Council Tax,R100 - Precept - ECC,09/02/2011,2080773-1,5543371,2100409 - Essex County Council,Precept 170111
Tendring DC,http://statistics.data.gov.uk/id/local-authority-district/22UN,Financial Services,9880 - Collection Fund - Council Tax,R110 - Council Tax Balance - ECC,09/02/2011,2080773-2,48185,2100409 - Essex County Council,Precept 170111
Tendring DC,http://statistics.data.gov.uk/id/local-authority-district/22UN,Financial Services,4520 - Land Charges,5448 - CON 29 Payments,09/02/2011,2080773-3,4918.1,2100409 - Essex County Council,Precept 170111
Tendring DC,http://statistics.data.gov.uk/id/local-authority-district/22UN,Financial Services,6683 - Second Homes Discount Scheme,8109 - Second Homes Discount Scheme - ECC Contribution,09/02/2011,2080773-4,-39879,2100409 - Essex County Council,Precept 170111
Tendring DC,http://statistics.data.gov.uk/id/local-authority-district/22UN,Financial Services,9900 - General Fund Balance Sheet,B262 - ECC Reimbursement Account,09/02/2011,2080773-5,-295768.92,2100409 - Essex County Council,Precept 170111
Tendring DC,http://statistics.data.gov.uk/id/local-authority-district/22UN,Benefits & Revenues,7820 - Concessionary Bus Passes,4570 - Bus Passes - Operators Reimbursment,15/02/2011,2080999-1,157146.17,2100498 - Essex County Council,Conc Fares Feb 11
Tendring DC,http://statistics.data.gov.uk/id/local-authority-district/22UN,Human Resources and Customer Services,1805 - New Programme Development,1700 - Training - Courses,22/02/2011,2081143-1,550,2100498 - Essex County Council,ECC
Tendring DC,http://statistics.data.gov.uk/id/local-authority-district/22UN,Financial Services,9880 - Collection Fund - Council Tax,R101 - Precept - Essex Fire,09/02/2011,2080774-1,338800,2100469 - Essex Fire Authority,Precept Fire 171110
Tendring DC,http://statistics.data.gov.uk/id/local-authority-district/22UN,Financial Services,9880 - Collection Fund - Council Tax,R111 - Council Tax Balance - Essex Fire,09/02/2011,2080774-2,2920,2100469 - Essex Fire Authority,Precept Fire 171110
Tendring DC,http://statistics.data.gov.uk/id/local-authority-district/22UN,Community Services,6970 - C &D - Tackling Anti Social Behaviour,4900 - Grants,15/02/2011,1042362-1,14500,2100510 - Essex Police Authority,ASBO CO-ORDINATOR
Tendring DC,http://statistics.data.gov.uk/id/local-authority-district/22UN,Financial Services,9880 - Collection Fund - Council Tax,R102 - Precept - Essex Police,09/02/2011,2080775-1,673927,2100500 - Essex Police Authority,Precept Pol
Tendring DC,http://statistics.data.gov.uk/id/local-authority-district/22UN,Financial Services,9880 - Collection Fund - Council Tax,R112 - Council Tax Balance - Essex Police,09/02/2011,2080775-2,5795,2100500 - Essex Police Authority,Precept Pol
Tendring DC,http://statistics.data.gov.uk/id/local-authority-district/22UN,Leisure Services,6160 - Princes Theatre,4400 - Maintenance Under Service Agreements,08/02/2011,2080591-1,502.05,2100531 - Euro-Fire Ltd,Princes Theatre
Tendring DC,http://statistics.data.gov.uk/id/local-authority-district/22UN,Leisure Services,4560 - Crematorium,4400 - Maintenance Under Service Agreements,02/02/2011,2080410-1,1787,2100532 - Facultatieve Technologies,
Tendring DC,http://statistics.data.gov.uk/id/local-authority-district/22UN,Leisure Services,4560 - Crematorium,2100 - Building Repairs,02/02/2011,2080410-2,563.5,2100532 - Facultatieve Technologies,
Tendring DC,http://statistics.data.gov.uk/id/local-authority-district/22UN,Leisure Services,4560 - Crematorium,2100 - Building Repairs,08/02/2011,2080641-1,644.92,2100532 - Facultatieve Technologies,
Tendring DC,http://statistics.data.gov.uk/id/local-authority-district/22UN,Financial Services,8700 - Small Projects,4900 - Grants,08/02/2011,1042210-1,985.49,2100552 - Family Support - Clacton,PURCHASE EQUIPMENT REQUIRE3D FOR JAYWICK LANE WELLBEING CENTRE
Tendring DC,http://statistics.data.gov.uk/id/local-authority-district/22UN,Benefits & Revenues,1580 - Benefits & Revenues,4300 - Printing & Stationery,02/02/2011,2080439-1,2502,2104631 - Financial Data Management Ltd,Deposit for Annual Billing Material 11/12
Tendring DC,http://statistics.data.gov.uk/id/local-authority-district/22UN,Benefits & Revenues,1580 - Benefits & Revenues,4300 - Printing & Stationery,02/02/2011,2080440-1,2000,2104631 - Financial Data Management Ltd,Surcharge for slot
Tendring DC,http://statistics.data.gov.uk/id/local-authority-district/22UN,Financial Services,8700 - Small Projects,4900 - Grants,08/02/2011,1042207-1,300,2110826 - Fire Your Imagination,CONTRIBUTION TOWARDS AFTER SCHOOL CRAFT CLUB
Tendring DC,http://statistics.data.gov.uk/id/local-authority-district/22UN,Financial Services,8700 - Small Projects,4900 - Grants,08/02/2011,1042207-2,300,2110826 - Fire Your Imagination,CONTRIBUTION TOWARDS AFTER SCHOOL CRAFT CLUB
Tendring DC,http://statistics.data.gov.uk/id/local-authority-district/22UN,Leisure Services,7600 - Tourist Information Centres,9356 - Commission Sales,15/02/2011,1042340-1,1376.46,2103743 - First Essex Buses Ltd,JANUARY COMMISSION
Tendring DC,http://statistics.data.gov.uk/id/local-authority-district/22UN,Technical & Procurement Services,8100 - Engineering Services,4094 - Other Equipment Hire/Leasing,08/02/2011,2080541-1,840,2100573 - Fork Rent plc,JCB Hire
Tendring DC,http://statistics.data.gov.uk/id/local-authority-district/22UN,Environmental Services,4820 - Public Conveniences,6300 - Contract Payment,22/02/2011,2081248-1,13181.31,2108969 - Fountains,Confee Pub Con Jan 11
Tendring DC,http://statistics.data.gov.uk/id/local-authority-district/22UN,Technical & Procurement Services,8100 - Engineering Services,4597 - Hired Services - Payments to Contractors,08/02/2011,2080537-1,666,2100534 - Frank Halls & Son,Beacon Repair
Tendring DC,http://statistics.data.gov.uk/id/local-authority-district/22UN,Technical & Procurement Services,2001 - Coast Protection - Special Maintenance,2114 - Special Maintenance,08/02/2011,2080538-1,2878,2100534 - Frank Halls & Son,Railings
Tendring DC,http://statistics.data.gov.uk/id/local-authority-district/22UN,Technical & Procurement Services,8100 - Engineering Services,4040 - Equipment & Tools,02/02/2011,1042036-1,550.72,2109684 - Frank Howard Tools & Fixings Ltd,TOOLS & MATERIALS
Tendring DC,http://statistics.data.gov.uk/id/local-authority-district/22UN,Technical & Procurement Services,8100 - Engineering Services,4080 - Materials & Consumables,08/02/2011,2080535-1,500,2109684 - Frank Howard Tools & Fixings Ltd,Barrier Tape
Tendring DC,http://statistics.data.gov.uk/id/local-authority-district/22UN,Leisure Services,1950 - Transport,3050 - Vehicle Repairs,15/02/2011,2080937-1,611.7,2110889 - Fuelsure,Fuelsure
Tendring DC,http://statistics.data.gov.uk/id/local-authority-district/22UN,Leisure Services,7560 - Tourism Publications,4300 - Printing & Stationery,02/02/2011,1041982-1,990,2102880 - Fuller-Davies Limited,ESC PRINT GUIDES
Tendring DC,http://statistics.data.gov.uk/id/local-authority-district/22UN,Benefits & Revenues,1580 - Benefits & Revenues,4635 - Cash Collection Contract,22/02/2011,2081250-1,1024.64,2101233 - G4S Cash Services (UK) Limited,G4S Mar 11
Tendring DC,http://statistics.data.gov.uk/id/local-authority-district/22UN,Benefits & Revenues,8520 - Frinton & Walton Swimming Pool,4635 - Cash Collection Contract,22/02/2011,2081250-10,139.13,2101233 - G4S Cash Services (UK) Limited,G4S Mar 11
Tendring DC,http://statistics.data.gov.uk/id/local-authority-district/22UN,Benefits & Revenues,5860 - Manningtree Sports Centre,4635 - Cash Collection Contract,22/02/2011,2081250-11,69.57,2101233 - G4S Cash Services (UK) Limited,G4S Mar 11
Tendring DC,http://statistics.data.gov.uk/id/local-authority-district/22UN,Benefits & Revenues,5820 - Harwich Sports Centre,4635 - Cash Collection Contract,22/02/2011,2081250-12,69.57,2101233 - G4S Cash Services (UK) Limited,G4S Mar 11
Tendring DC,http://statistics.data.gov.uk/id/local-authority-district/22UN,Benefits & Revenues,5260 - Rent Collection And Accounting,4635 - Cash Collection Contract,22/02/2011,2081250-2,260.26,2101233 - G4S Cash Services (UK) Limited,G4S Mar 11
Tendring DC,http://statistics.data.gov.uk/id/local-authority-district/22UN,Benefits & Revenues,5260 - Rent Collection And Accounting,4635 - Cash Collection Contract,22/02/2011,2081250-3,42.26,2101233 - G4S Cash Services (UK) Limited,G4S Mar 11
Tendring DC,http://statistics.data.gov.uk/id/local-authority-district/22UN,Benefits & Revenues,1560 - Cashiers,4635 - Cash Collection Contract,22/02/2011,2081250-4,63.02,2101233 - G4S Cash Services (UK) Limited,G4S Mar 11
Tendring DC,http://statistics.data.gov.uk/id/local-authority-district/22UN,Benefits & Revenues,8025 - Car Parks - Off St,4635 - Cash Collection Contract,22/02/2011,2081250-5,147.99,2101233 - G4S Cash Services (UK) Limited,G4S Mar 11
Tendring DC,http://statistics.data.gov.uk/id/local-authority-district/22UN,Benefits & Revenues,8530 - Brightlingsea Swimming Pool,4635 - Cash Collection Contract,22/02/2011,2081250-6,69.57,2101233 - G4S Cash Services (UK) Limited,G4S Mar 11
Tendring DC,http://statistics.data.gov.uk/id/local-authority-district/22UN,Benefits & Revenues,8540 - Leisure Centre Clacton,4635 - Cash Collection Contract,22/02/2011,2081250-7,208.7,2101233 - G4S Cash Services (UK) Limited,G4S Mar 11
Tendring DC,http://statistics.data.gov.uk/id/local-authority-district/22UN,Benefits & Revenues,8510 - Dovercourt Swimming Pool & A.W.F.,4635 - Cash Collection Contract,22/02/2011,2081250-8,208.7,2101233 - G4S Cash Services (UK) Limited,G4S Mar 11
Tendring DC,http://statistics.data.gov.uk/id/local-authority-district/22UN,Benefits & Revenues,5800 - Brightlingsea Sports Centre,4635 - Cash Collection Contract,22/02/2011,2081250-9,69.57,2101233 - G4S Cash Services (UK) Limited,G4S Mar 11
Tendring DC,http://statistics.data.gov.uk/id/local-authority-district/22UN,Technical & Procurement Services,1610 - Car Parks Service Unit Account,1700 - Training - Courses,08/02/2011,2080760-1,2837.9,2105800 - Gary Kay Smith Ltd,GKS NVQs
Tendring DC,http://statistics.data.gov.uk/id/local-authority-district/22UN,Human Resources and Customer Services,1520 - Planning Management & Administration,1350 - Agency Staff,15/02/2011,2080811-1,6727.5,2110399 - GatenbySanderson Ltd,Gatenby Sanderson
Tendring DC,http://statistics.data.gov.uk/id/local-authority-district/22UN,Human Resources and Customer Services,1880 - Office Accommodation Expenses,4632 - Security,15/02/2011,2080807-1,1836,2100546 - GCS Alarms,GCS Alarms
Tendring DC,http://statistics.data.gov.uk/id/local-authority-district/22UN,Community Services,5480 - Repair & Maintenance,2083 - CCTV servicing,22/02/2011,2081173-1,5802.5,2100546 - GCS Alarms,GCS - Housing Estate
Tendring DC,http://statistics.data.gov.uk/id/local-authority-district/22UN,Community Services,7000 - CCTV,4400 - Maintenance Under Service Agreements,22/02/2011,2081174-1,14300,2100546 - GCS Alarms,GCS Town Centre
Tendring DC,http://statistics.data.gov.uk/id/local-authority-district/22UN,Community Services,8025 - Car Parks - Off St,4400 - Maintenance Under Service Agreements,22/02/2011,2081175-1,1320,2100546 - GCS Alarms,GCS Car Parks
Tendring DC,http://statistics.data.gov.uk/id/local-authority-district/22UN,Environmental Services,4900 - Street Sweeping,4642 - Provision of Litter Bins,22/02/2011,2081073-1,2565,2100567 - Glasdon UK Ltd,Glasdon
Tendring DC,http://statistics.data.gov.uk/id/local-authority-district/22UN,Corporate Performance,1760 - IT Direct Service Costs,4715 - Data Communication Charge,22/02/2011,2081121-1,1500,2106707 - H2O Networks Ltd,
Tendring DC,http://statistics.data.gov.uk/id/local-authority-district/22UN,Technical & Procurement Services,H710 - Selected Improvements,C200 - Main Contractor,02/02/2011,2080374-1,9894.3,2104745 - Hamcor Construction Services Limited,Canopy Works
Tendring DC,http://statistics.data.gov.uk/id/local-authority-district/22UN,Technical & Procurement Services,H860 - Disabled Adaptations,C200 - Main Contractor,08/02/2011,2080619-1,5324,2104745 - Hamcor Construction Services Limited,REDACTED PERSONAL DATA
Tendring DC,http://statistics.data.gov.uk/id/local-authority-district/22UN,Technical & Procurement Services,H860 - Disabled Adaptations,C200 - Main Contractor,08/02/2011,2080620-1,5482,2104745 - Hamcor Construction Services Limited,REDACTED PERSONAL DATA
Tendring DC,http://statistics.data.gov.uk/id/local-authority-district/22UN,Technical & Procurement Services,5480 - Repair & Maintenance,2090 - Fencing,08/02/2011,2080621-1,550,2104745 - Hamcor Construction Services Limited,Percy King Estate
Tendring DC,http://statistics.data.gov.uk/id/local-authority-district/22UN,Environmental Services,H920 - DFGs,C400 - Grant payments,02/02/2011,1041998-1,3380,2110586 - Handicare Ltd,REDACTED PERSONAL DATA
Tendring DC,http://statistics.data.gov.uk/id/local-authority-district/22UN,Financial Services,1180 - Benefit Fraud Investigation,4460 - Legal & Professional Expenses,02/02/2011,1042014-1,1016.4,2100672 - Harris Cuffaro & Nichols Solicitors,SOLICITOR COSTS
Tendring DC,http://statistics.data.gov.uk/id/local-authority-district/22UN,Financial Services,1180 - Benefit Fraud Investigation,4460 - Legal & Professional Expenses,02/02/2011,1042015-1,659.4,2100672 - Harris Cuffaro & Nichols Solicitors,SOLICITOR COSTS
Tendring DC,http://statistics.data.gov.uk/id/local-authority-district/22UN,Financial Services,1180 - Benefit Fraud Investigation,4460 - Legal & Professional Expenses,08/02/2011,2080567-1,901.5,2100672 - Harris Cuffaro & Nichols Solicitors,
Tendring DC,http://statistics.data.gov.uk/id/local-authority-district/22UN,Financial Services,1180 - Benefit Fraud Investigation,4460 - Legal & Professional Expenses,08/02/2011,2080661-1,733.2,2100672 - Harris Cuffaro & Nichols Solicitors,Solicitor Costs
Tendring DC,http://statistics.data.gov.uk/id/local-authority-district/22UN,Financial Services,1180 - Benefit Fraud Investigation,4460 - Legal & Professional Expenses,08/02/2011,2080662-1,687,2100672 - Harris Cuffaro & Nichols Solicitors,Solicitor Costs
Tendring DC,http://statistics.data.gov.uk/id/local-authority-district/22UN,Financial Services,1180 - Benefit Fraud Investigation,4460 - Legal & Professional Expenses,22/02/2011,2081062-1,666.9,2100672 - Harris Cuffaro & Nichols Solicitors,
Tendring DC,http://statistics.data.gov.uk/id/local-authority-district/22UN,Environmental Services,4840 - Recycling,5466 - Community Site Payments,08/02/2011,1042194-1,618.47,2105824 - Harwich & Dovercourt Community Ass,BARRACK LANE HARWICH
Tendring DC,http://statistics.data.gov.uk/id/local-authority-district/22UN,Environmental Services,4840 - Recycling,5467 - Material Collection Payments,22/02/2011,2081078-1,502.77,2101959 - Harwich Reclaim,Harwich Reclaim
Tendring DC,http://statistics.data.gov.uk/id/local-authority-district/22UN,Technical & Procurement Services,C610 - Holland Haven Sea Wall - Gunfleet Boating Club frontage,C200 - Main Contractor,15/02/2011,2080860-1,6800,2105689 - Haydn Evans Consulting,Holland Haven
Tendring DC,http://statistics.data.gov.uk/id/local-authority-district/22UN,Technical & Procurement Services,C610 - Holland Haven Sea Wall - Gunfleet Boating Club frontage,C200 - Main Contractor,15/02/2011,2080861-1,1200,2105689 - Haydn Evans Consulting,Seawall Holland
Tendring DC,http://statistics.data.gov.uk/id/local-authority-district/22UN,Leisure Services,6883 - Public Halls-Holland,2200 - Rents Paid,15/02/2011,2080901-1,2000,2108660 - Holland on Sea Community Association,Holland On Sea Comm Assoc
Tendring DC,http://statistics.data.gov.uk/id/local-authority-district/22UN,Planning Services,4360 - Development Control - Chargeable Account,4460 - Legal & Professional Expenses,08/02/2011,1042172-1,1993,2100637 - Holmes & Hills Solicitors,REDACTED PERSONAL DATA
Tendring DC,http://statistics.data.gov.uk/id/local-authority-district/22UN,Planning Services,4380 - Enforcement,4460 - Legal & Professional Expenses,15/02/2011,1042246-1,1312,2100637 - Holmes & Hills Solicitors,REDACTED PERSONAL DATA
Tendring DC,http://statistics.data.gov.uk/id/local-authority-district/22UN,Planning Services,4380 - Enforcement,4460 - Legal & Professional Expenses,15/02/2011,1042247-1,3540,2100637 - Holmes & Hills Solicitors,REDACTED PERSONAL DATA
Tendring DC,http://statistics.data.gov.uk/id/local-authority-district/22UN,Environmental Services,H920 - DFGs,C400 - Grant payments,02/02/2011,1041997-1,29015.75,2101848 - Homecraft Contracts Ltd,REDACTED PERSONAL DATA
Tendring DC,http://statistics.data.gov.uk/id/local-authority-district/22UN,Leisure Services,8520 - Frinton & Walton Swimming Pool,2100 - Building Repairs,15/02/2011,1042253-1,745,2101848 - Homecraft Contracts Ltd,HOMECRAFT
Tendring DC,http://statistics.data.gov.uk/id/local-authority-district/22UN,Benefits & Revenues,1580 - Benefits & Revenues,4300 - Printing & Stationery,15/02/2011,2080789-1,786.5,2110569 - Hound Envelopes Ltd,Envelopes
Tendring DC,http://statistics.data.gov.uk/id/local-authority-district/22UN,Housing Services,5240 - Managing Tenancies,5242 - Tenant Relations,22/02/2011,2081117-1,1289.15,2102449 - HQN Ltd,Training Fees
Tendring DC,http://statistics.data.gov.uk/id/local-authority-district/22UN,Leisure Services,6345 - Tendring Youth Activity Partnership,4597 - Hired Services - Payments to Contractors,15/02/2011,1042343-1,2219,2106492 - Icon Creative Services Ltd,FEB HALF TERM PROG
Tendring DC,http://statistics.data.gov.uk/id/local-authority-district/22UN,Leisure Services,5800 - Brightlingsea Sports Centre,4300 - Printing & Stationery,22/02/2011,2081066-1,66.2,2106492 - Icon Creative Services Ltd,
Tendring DC,http://statistics.data.gov.uk/id/local-authority-district/22UN,Leisure Services,5820 - Harwich Sports Centre,4300 - Printing & Stationery,22/02/2011,2081066-2,66.2,2106492 - Icon Creative Services Ltd,
Tendring DC,http://statistics.data.gov.uk/id/local-authority-district/22UN,Leisure Services,5860 - Manningtree Sports Centre,4300 - Printing & Stationery,22/02/2011,2081066-3,66.2,2106492 - Icon Creative Services Ltd,
Tendring DC,http://statistics.data.gov.uk/id/local-authority-district/22UN,Leisure Services,8510 - Dovercourt Swimming Pool & A.W.F.,4300 - Printing & Stationery,22/02/2011,2081066-4,99.3,2106492 - Icon Creative Services Ltd,
Tendring DC,http://statistics.data.gov.uk/id/local-authority-district/22UN,Leisure Services,8520 - Frinton & Walton Swimming Pool,4300 - Printing & Stationery,22/02/2011,2081066-5,99.3,2106492 - Icon Creative Services Ltd,
Tendring DC,http://statistics.data.gov.uk/id/local-authority-district/22UN,Leisure Services,8540 - Leisure Centre Clacton,4300 - Printing & Stationery,22/02/2011,2081066-6,264.8,2106492 - Icon Creative Services Ltd,
Tendring DC,http://statistics.data.gov.uk/id/local-authority-district/22UN,Planning Services,1060 - Environmental Services,1700 - Training - Courses,08/02/2011,2080515-1,1357,2106643 - Idox Software Ltd,DW UFT Document Templates Course
Tendring DC,http://statistics.data.gov.uk/id/local-authority-district/22UN,Planning Services,1520 - Planning Management & Administration,1700 - Training - Courses,08/02/2011,2080520-1,543,2106643 - Idox Software Ltd,DW UFT Document Templates Course
Tendring DC,http://statistics.data.gov.uk/id/local-authority-district/22UN,Technical & Procurement Services,8025 - Car Parks - Off St,4597 - Hired Services - Payments to Contractors,02/02/2011,2080442-1,537.7,2100792 - Insignia Ltd,Shop Local Carrier bags
Tendring DC,http://statistics.data.gov.uk/id/local-authority-district/22UN,Technical & Procurement Services,8100 - Engineering Services,4080 - Materials & Consumables,08/02/2011,2080633-1,863.96,2100713 - Instarmac Group plc,Road Repair
Tendring DC,http://statistics.data.gov.uk/id/local-authority-district/22UN,Community Services,6740 - Careline,1700 - Training - Courses,15/02/2011,2080788-1,1710.84,2110090 - J & J Enterprises,Work Towards TSA
Tendring DC,http://statistics.data.gov.uk/id/local-authority-district/22UN,Community Services,6740 - Careline,1700 - Training - Courses,15/02/2011,2080788-2,417.6,2110090 - J & J Enterprises,Work Towards TSA
Tendring DC,http://statistics.data.gov.uk/id/local-authority-district/22UN,Technical & Procurement Services,C279 - Coastal Pathfinder - Crag Walk,C200 - Main Contractor,22/02/2011,2081261-1,121117.39,2100754 - J Breheny Contractors Ltd,Crag Walk Scheme
Tendring DC,http://statistics.data.gov.uk/id/local-authority-district/22UN,Environmental Services,H920 - DFGs,C400 - Grant payments,02/02/2011,1041996-1,2441.78,2110327 - JPS Plumbing & General Building,REDACTED PERSONAL DATA
Tendring DC,http://statistics.data.gov.uk/id/local-authority-district/22UN,Environmental Services,H920 - DFGs,C400 - Grant payments,08/02/2011,2080716-1,4417.79,2110327 - JPS Plumbing & General Building,REDACTED PERSONAL DATA
Tendring DC,http://statistics.data.gov.uk/id/local-authority-district/22UN,Environmental Services,H920 - DFGs,C400 - Grant payments,08/02/2011,2080717-1,2763.64,2110327 - JPS Plumbing & General Building,REDACTED PERSONAL DATA
Tendring DC,http://statistics.data.gov.uk/id/local-authority-district/22UN,Housing Services,5260 - Rent Collection And Accounting,4312 - Tenancy Stationery,15/02/2011,2080870-1,3711.95,2100729 - Kalamazoo Secure Solutions Ltd,
Tendring DC,http://statistics.data.gov.uk/id/local-authority-district/22UN,Leisure Services,5820 - Harwich Sports Centre,2308 - Energy Costs - Gas (Including LPG),08/02/2011,1042106-1,1072.67,2105075 - Kent County Council,
Tendring DC,http://statistics.data.gov.uk/id/local-authority-district/22UN,Community Services,5360 - Sheltered Units,4601 - Hired services - Cleaning,02/02/2011,2080460-1,588.88,2100851 - KO-SHEEN Contract Cleaning Ltd,Cleaning Belmans
Tendring DC,http://statistics.data.gov.uk/id/local-authority-district/22UN,Leisure Services,7680 - Tour De Tendring,5500 - Miscellaneous Expenses,02/02/2011,1041980-1,853,2110881 - Laban Brown Design Ltd,CYCLING MAP LEAFLET
Tendring DC,http://statistics.data.gov.uk/id/local-authority-district/22UN,Corporate Performance,C350 - Hardware rolling replacement programme,C275 - Hardware,08/02/2011,2080561-1,2457.89,2100872 - Laptopshop I.T Ltd,Laptops
Tendring DC,http://statistics.data.gov.uk/id/local-authority-district/22UN,Corporate Performance,1760 - IT Direct Service Costs,6320 - IT Services Agreements Payment,15/02/2011,1042445-1,47464.11,2100894 - Liberata UK Ltd,ICT CONTRACT - FEB 2011
Tendring DC,http://statistics.data.gov.uk/id/local-authority-district/22UN,Financial Services,6640 - Treasury Management,4753 - Computer - Application Software,15/02/2011,2080971-1,1000,2102373 - Logotech Systems,DCTM Annual Licence
Tendring DC,http://statistics.data.gov.uk/id/local-authority-district/22UN,Technical & Procurement Services,5480 - Repair & Maintenance,2089 - Sewer Repairs,15/02/2011,1042273-1,939,2107196 - Mains 'N' Drains 24-Hour Plumbing Services,DE VERE ESTATE
Tendring DC,http://statistics.data.gov.uk/id/local-authority-district/22UN,Technical & Procurement Services,2040 - Land Drainage - General Maintenance,2116 - Watercourse Maintenance,02/02/2011,2080350-1,805,2107196 - Mains 'N' Drains 24-Hour Plumbing Services,Shop Road
Tendring DC,http://statistics.data.gov.uk/id/local-authority-district/22UN,Technical & Procurement Services,2040 - Land Drainage - General Maintenance,2116 - Watercourse Maintenance,02/02/2011,2080351-1,720,2107196 - Mains 'N' Drains 24-Hour Plumbing Services,Halfacre Lane
Tendring DC,http://statistics.data.gov.uk/id/local-authority-district/22UN,Technical & Procurement Services,5480 - Repair & Maintenance,2089 - Sewer Repairs,08/02/2011,2080494-1,688,2107196 - Mains 'N' Drains 24-Hour Plumbing Services,REDACTED PERSONAL DATA
Tendring DC,http://statistics.data.gov.uk/id/local-authority-district/22UN,Technical & Procurement Services,2001 - Coast Protection - Special Maintenance,2114 - Special Maintenance,15/02/2011,2080849-1,630,2107196 - Mains 'N' Drains 24-Hour Plumbing Services,Holland Seafront
Tendring DC,http://statistics.data.gov.uk/id/local-authority-district/22UN,Technical & Procurement Services,5480 - Repair & Maintenance,2015 - Drain Clearance And Repairs,15/02/2011,2080856-1,1223.5,2107196 - Mains 'N' Drains 24-Hour Plumbing Services,July Blockages
Tendring DC,http://statistics.data.gov.uk/id/local-authority-district/22UN,Technical & Procurement Services,5480 - Repair & Maintenance,2015 - Drain Clearance And Repairs,15/02/2011,2080857-1,1015.75,2107196 - Mains 'N' Drains 24-Hour Plumbing Services,August Blockages
Tendring DC,http://statistics.data.gov.uk/id/local-authority-district/22UN,Technical & Procurement Services,5480 - Repair & Maintenance,2015 - Drain Clearance And Repairs,15/02/2011,2080858-1,1541.8,2107196 - Mains 'N' Drains 24-Hour Plumbing Services,September Blockages
Tendring DC,http://statistics.data.gov.uk/id/local-authority-district/22UN,Technical & Procurement Services,H706 - Kitchen & Bathroom Replacement,C200 - Main Contractor,15/02/2011,2080859-1,512,2107196 - Mains 'N' Drains 24-Hour Plumbing Services,REDACTED PERSONAL DATA
Tendring DC,http://statistics.data.gov.uk/id/local-authority-district/22UN,Technical & Procurement Services,8025 - Car Parks - Off St,2123 - Special Surface Maintenance,15/02/2011,1042262-1,570,2109644 - Margos Ltd,HIGH STREET CAR PARK
Tendring DC,http://statistics.data.gov.uk/id/local-authority-district/22UN,Community Services,6740 - Careline,3250 - Operational Leases - Transport,15/02/2011,1042436-1,11088,2109802 - Masterlease,CARELINE VANS
Tendring DC,http://statistics.data.gov.uk/id/local-authority-district/22UN,Technical & Procurement Services,C276 - Clacton Regeneration,C200 - Main Contractor,15/02/2011,1042444-1,42512.62,2101244 - Merrygold and Howard Joint Liquidators of Shairwood Contracts Ltd,
Tendring DC,http://statistics.data.gov.uk/id/local-authority-district/22UN,Corporate Performance,1760 - IT Direct Service Costs,4751 - Hardware & Service Maintenance,15/02/2011,2080978-1,849.3,2100902 - Micro Direct,M'Boards etc
Tendring DC,http://statistics.data.gov.uk/id/local-authority-district/22UN,Corporate Performance,1760 - IT Direct Service Costs,4753 - Computer - Application Software,08/02/2011,2080565-1,1500,2103677 - MIS Corporate Defence Solutions,Security S'Ware
Tendring DC,http://statistics.data.gov.uk/id/local-authority-district/22UN,Corporate Performance,1760 - IT Direct Service Costs,6325 - Additional ICT Services,08/02/2011,2080565-2,563,2103677 - MIS Corporate Defence Solutions,Security S'Ware
Tendring DC,http://statistics.data.gov.uk/id/local-authority-district/22UN,Financial Services,8700 - Small Projects,4900 - Grants,08/02/2011,1042208-1,500,REDACTED PERSONAL DATA,CONTRIBUTION TO PRODUCTION COSTS
Tendring DC,http://statistics.data.gov.uk/id/local-authority-district/22UN,Financial Services,8700 - Small Projects,4900 - Grants,08/02/2011,1042208-2,500,REDACTED PERSONAL DATA,CONTRIBUTION TO PRODUCTION COSTS
Tendring DC,http://statistics.data.gov.uk/id/local-authority-district/22UN,Housing Services,9920 - HRA Balance Sheet,B860 - Housing Rents - Cash,22/02/2011,1042540-1,600,REDACTED PERSONAL DATA,Rent Refund
Tendring DC,http://statistics.data.gov.uk/id/local-authority-district/22UN,Legal Services,4520 - Land Charges,5448 - CON 29 Payments,22/02/2011,1042505-1,1288.7,2103554 - Mouchel Parkman Services Ltd,TENDRING URBAN SEARCHES
Tendring DC,http://statistics.data.gov.uk/id/local-authority-district/22UN,Housing Services,9920 - HRA Balance Sheet,B860 - Housing Rents - Cash,02/02/2011,2080331-1,729.7,REDACTED PERSONAL DATA,Rent Refund
Tendring DC,http://statistics.data.gov.uk/id/local-authority-district/22UN,Leisure Services,6000 - Beach Hut Sites,9087 - Licence Fees,15/02/2011,2080900-1,578.87,REDACTED PERSONAL DATA,Refund of Beach Hut Fees April 2010 - March 2011
Tendring DC,http://statistics.data.gov.uk/id/local-authority-district/22UN,Planning Services,4360 - Development Control - Chargeable Account,4503 - Consultants Fees - Counsels Fees,15/02/2011,1042248-1,3000,REDACTED PERSONAL DATA,DW BATHSIDE BAY ADVICE
Tendring DC,http://statistics.data.gov.uk/id/local-authority-district/22UN,Leisure Services,6060 - First Aid Posts,4900 - Grants,02/02/2011,1042102-1,950,REDACTED PERSONAL DATA,CLACTON VOLUNTEER LIFEGUARD GRANT
Tendring DC,http://statistics.data.gov.uk/id/local-authority-district/22UN,Leisure Services,6000 - Beach Hut Sites,9087 - Licence Fees,15/02/2011,2080899-1,578.87,REDACTED PERSONAL DATA,Refund of Beach Hut Fees April 2010-May 2011
Tendring DC,http://statistics.data.gov.uk/id/local-authority-district/22UN,Housing Services,9920 - HRA Balance Sheet,B860 - Housing Rents - Cash,02/02/2011,2080334-1,924.44,REDACTED PERSONAL DATA,Rent Refund
Tendring DC,http://statistics.data.gov.uk/id/local-authority-district/22UN,Leisure Services,6000 - Beach Hut Sites,9087 - Licence Fees,15/02/2011,2080896-1,578.87,REDACTED PERSONAL DATA,Refund of Beach hut Fees April 2010 - March 2011
Tendring DC,http://statistics.data.gov.uk/id/local-authority-district/22UN,Housing Services,9920 - HRA Balance Sheet,B860 - Housing Rents - Cash,08/02/2011,2080688-1,1146.76,REDACTED PERSONAL DATA,Rent Refund
Tendring DC,http://statistics.data.gov.uk/id/local-authority-district/22UN,Housing Services,9920 - HRA Balance Sheet,B860 - Housing Rents - Cash,02/02/2011,2080339-1,1739.46,REDACTED PERSONAL DATA,Rent Refund
Tendring DC,http://statistics.data.gov.uk/id/local-authority-district/22UN,Housing Services,9920 - HRA Balance Sheet,B860 - Housing Rents - Cash,15/02/2011,2080919-1,940.74,REDACTED PERSONAL DATA,Rent Refund
Tendring DC,http://statistics.data.gov.uk/id/local-authority-district/22UN,Leisure Services,6000 - Beach Hut Sites,9087 - Licence Fees,15/02/2011,2080897-1,578.87,REDACTED PERSONAL DATA,Refund of Beach Hut Fees April 2010 - May 2010
Tendring DC,http://statistics.data.gov.uk/id/local-authority-district/22UN,Technical & Procurement Services,5480 - Repair & Maintenance,2072 - Planned Partial Refurbishment To Electrical Instal,15/02/2011,1042265-1,940,2110096 - MRM Electrical,37-43 STOURVIEW CLOSE
Tendring DC,http://statistics.data.gov.uk/id/local-authority-district/22UN,Technical & Procurement Services,5480 - Repair & Maintenance,2071 - Electric Installation Testing,15/02/2011,1042265-2,50,2110096 - MRM Electrical,37-43 STOURVIEW CLOSE
Tendring DC,http://statistics.data.gov.uk/id/local-authority-district/22UN,Technical & Procurement Services,5480 - Repair & Maintenance,2072 - Planned Partial Refurbishment To Electrical Instal,15/02/2011,1042266-1,760,2110096 - MRM Electrical,24-30 STOURVIEW CLOSE
Tendring DC,http://statistics.data.gov.uk/id/local-authority-district/22UN,Technical & Procurement Services,5480 - Repair & Maintenance,2071 - Electric Installation Testing,15/02/2011,1042266-2,50,2110096 - MRM Electrical,24-30 STOURVIEW CLOSE
Tendring DC,http://statistics.data.gov.uk/id/local-authority-district/22UN,Technical & Procurement Services,5480 - Repair & Maintenance,2072 - Planned Partial Refurbishment To Electrical Instal,15/02/2011,1042267-1,760,2110096 - MRM Electrical,32-38 STOURVIEW CLOSE
Tendring DC,http://statistics.data.gov.uk/id/local-authority-district/22UN,Technical & Procurement Services,5480 - Repair & Maintenance,2071 - Electric Installation Testing,15/02/2011,1042267-2,50,2110096 - MRM Electrical,32-38 STOURVIEW CLOSE
Tendring DC,http://statistics.data.gov.uk/id/local-authority-district/22UN,Technical & Procurement Services,5480 - Repair & Maintenance,2072 - Planned Partial Refurbishment To Electrical Instal,15/02/2011,1042268-1,940,2110096 - MRM Electrical,61-67 STOURVIEW CLOSE
Tendring DC,http://statistics.data.gov.uk/id/local-authority-district/22UN,Technical & Procurement Services,5480 - Repair & Maintenance,2071 - Electric Installation Testing,15/02/2011,1042268-2,50,2110096 - MRM Electrical,61-67 STOURVIEW CLOSE
Tendring DC,http://statistics.data.gov.uk/id/local-authority-district/22UN,Technical & Procurement Services,5480 - Repair & Maintenance,2072 - Planned Partial Refurbishment To Electrical Instal,15/02/2011,1042269-1,940,2110096 - MRM Electrical,53-59 STOURVIEW CLOSE
Tendring DC,http://statistics.data.gov.uk/id/local-authority-district/22UN,Technical & Procurement Services,5480 - Repair & Maintenance,2071 - Electric Installation Testing,15/02/2011,1042269-2,50,2110096 - MRM Electrical,53-59 STOURVIEW CLOSE
Tendring DC,http://statistics.data.gov.uk/id/local-authority-district/22UN,Technical & Procurement Services,5480 - Repair & Maintenance,2072 - Planned Partial Refurbishment To Electrical Instal,15/02/2011,1042270-1,940,2110096 - MRM Electrical,45-51 STOURVIEW CLOSE
Tendring DC,http://statistics.data.gov.uk/id/local-authority-district/22UN,Technical & Procurement Services,5480 - Repair & Maintenance,2071 - Electric Installation Testing,15/02/2011,1042270-2,50,2110096 - MRM Electrical,45-51 STOURVIEW CLOSE
Tendring DC,http://statistics.data.gov.uk/id/local-authority-district/22UN,Technical & Procurement Services,5480 - Repair & Maintenance,2072 - Planned Partial Refurbishment To Electrical Instal,02/02/2011,2080372-1,940,2110096 - MRM Electrical,69-75 Stourview Close
Tendring DC,http://statistics.data.gov.uk/id/local-authority-district/22UN,Technical & Procurement Services,5480 - Repair & Maintenance,2071 - Electric Installation Testing,02/02/2011,2080372-2,50,2110096 - MRM Electrical,69-75 Stourview Close
Tendring DC,http://statistics.data.gov.uk/id/local-authority-district/22UN,Planning Services,4380 - Enforcement,4460 - Legal & Professional Expenses,15/02/2011,1042245-1,300,REDACTED PERSONAL DATA,REDACTED PERSONAL DATA
Tendring DC,http://statistics.data.gov.uk/id/local-authority-district/22UN,Planning Services,4380 - Enforcement,4460 - Legal & Professional Expenses,15/02/2011,1042245-2,1975,REDACTED PERSONAL DATA,REDACTED PERSONAL DATA
Tendring DC,http://statistics.data.gov.uk/id/local-authority-district/22UN,Leisure Services,6000 - Beach Hut Sites,9087 - Licence Fees,15/02/2011,2080898-1,578.87,REDACTED PERSONAL DATA,Refund of Beach Hut Fees April 2010 - May 2011
Tendring DC,http://statistics.data.gov.uk/id/local-authority-district/22UN,Housing Services,9920 - HRA Balance Sheet,B860 - Housing Rents - Cash,02/02/2011,2080336-1,1176.72,REDACTED PERSONAL DATA,Rent Refund
Tendring DC,http://statistics.data.gov.uk/id/local-authority-district/22UN,Housing Services,9920 - HRA Balance Sheet,B860 - Housing Rents - Cash,02/02/2011,2080330-1,961.8,REDACTED PERSONAL DATA,Rent Refund
Tendring DC,http://statistics.data.gov.uk/id/local-authority-district/22UN,Community Services,7020 - SSCF - Crime Reduction,4900 - Grants,02/02/2011,2080453-1,4846.5,2102849 - Nacro Community Enterprise Ltd,REDACTED PERSONAL DATA
Tendring DC,http://statistics.data.gov.uk/id/local-authority-district/22UN,Community Services,6970 - C &D - Tackling Anti Social Behaviour,4900 - Grants,02/02/2011,2080454-1,4038.75,2102849 - Nacro Community Enterprise Ltd,REDACTED PERSONAL DATA
Tendring DC,http://statistics.data.gov.uk/id/local-authority-district/22UN,Corporate Performance,C367 - Application Interfacing,C276 - Licences for Software,15/02/2011,2080975-1,1753.67,2107607 - ndl-metascybe Limited,NDL Subs
Tendring DC,http://statistics.data.gov.uk/id/local-authority-district/22UN,Technical & Procurement Services,H706 - Kitchen & Bathroom Replacement,C200 - Main Contractor,08/02/2011,1042222-1,21000,2100988 - Needhams Building Contractors Limited,
Tendring DC,http://statistics.data.gov.uk/id/local-authority-district/22UN,Technical & Procurement Services,H706 - Kitchen & Bathroom Replacement,C200 - Main Contractor,08/02/2011,1042222-2,39000,2100988 - Needhams Building Contractors Limited,
Tendring DC,http://statistics.data.gov.uk/id/local-authority-district/22UN,Benefits & Revenues,1580 - Benefits & Revenues,4754 - IT Consultancy,08/02/2011,1042173-1,2000,2101204 - Northgate Information Solutions UK Ltd,NORTHGATE YEAR END SUPPORT ANNUAL BILLING
Tendring DC,http://statistics.data.gov.uk/id/local-authority-district/22UN,Benefits & Revenues,1580 - Benefits & Revenues,4753 - Computer - Application Software,02/02/2011,2080409-1,4090,2101204 - Northgate Information Solutions UK Ltd,Support & Maintenance
Tendring DC,http://statistics.data.gov.uk/id/local-authority-district/22UN,Housing Services,5260 - Rent Collection And Accounting,4757 - IT External Charges,15/02/2011,2080888-1,537.43,2101204 - Northgate Information Solutions UK Ltd,CBL Internet Server
Tendring DC,http://statistics.data.gov.uk/id/local-authority-district/22UN,Benefits & Revenues,1580 - Benefits & Revenues,4753 - Computer - Application Software,15/02/2011,2080996-1,3000,2101204 - Northgate Information Solutions UK Ltd,HB Module
Tendring DC,http://statistics.data.gov.uk/id/local-authority-district/22UN,Benefits & Revenues,1580 - Benefits & Revenues,4753 - Computer - Application Software,22/02/2011,2081046-1,25000,2101204 - Northgate Information Solutions UK Ltd,RDBA Gold Svs
Tendring DC,http://statistics.data.gov.uk/id/local-authority-district/22UN,Benefits & Revenues,1580 - Benefits & Revenues,4753 - Computer - Application Software,22/02/2011,2081047-1,64547.09,2101204 - Northgate Information Solutions UK Ltd,S & M Fixed Term Support
Tendring DC,http://statistics.data.gov.uk/id/local-authority-district/22UN,Benefits & Revenues,1580 - Benefits & Revenues,4753 - Computer - Application Software,22/02/2011,2081048-1,9000,2101204 - Northgate Information Solutions UK Ltd,S & M Dip & Workflow
Tendring DC,http://statistics.data.gov.uk/id/local-authority-district/22UN,Corporate Performance,1930 - Asset Management,4460 - Legal & Professional Expenses,02/02/2011,1042020-1,3777.75,2104823 - NPS Property Consultants  Ltd,NPS FEES OCT-DEC 10
Tendring DC,http://statistics.data.gov.uk/id/local-authority-district/22UN,Leisure Services,6040 - Misc Seafront Activities,4040 - Equipment & Tools,08/02/2011,2080731-1,540,2101011 - Nucleus Watersports,Liferings
Tendring DC,http://statistics.data.gov.uk/id/local-authority-district/22UN,Regeneration Services,7747 - Town Centres Funding (Empty Shops),4900 - Grants,02/02/2011,2080310-1,1500,2110802 - Number 24,Grant Art Deco & Antiques
Tendring DC,http://statistics.data.gov.uk/id/local-authority-district/22UN,Technical & Procurement Services,C276 - Clacton Regeneration,C200 - Main Contractor,15/02/2011,1042263-1,5992,2110817 - Oak View Landscapes Ltd,PIER AVE SOUTH
Tendring DC,http://statistics.data.gov.uk/id/local-authority-district/22UN,Financial Services,5680 - HRA Subsidy,6680 - HRA Negative Subsidy payment,09/02/2011,2080778-1,191436,2101081 - ODPM,HRA Surplus
Tendring DC,http://statistics.data.gov.uk/id/local-authority-district/22UN,Environmental Services,H920 - DFGs,C400 - Grant payments,02/02/2011,1041999-1,4506.92,2109199 - One Call Property Maintenance,REDACTED PERSONAL DATA
Tendring DC,http://statistics.data.gov.uk/id/local-authority-district/22UN,Environmental Services,H920 - DFGs,C400 - Grant payments,02/02/2011,1042000-1,2640.19,2109199 - One Call Property Maintenance,REDACTED PERSONAL DATA
Tendring DC,http://statistics.data.gov.uk/id/local-authority-district/22UN,Environmental Services,H920 - DFGs,C400 - Grant payments,22/02/2011,2081124-1,4543.53,2109199 - One Call Property Maintenance,REDACTED PERSONAL DATA
Tendring DC,http://statistics.data.gov.uk/id/local-authority-district/22UN,Environmental Services,H920 - DFGs,C400 - Grant payments,22/02/2011,2081125-1,2217.04,2109199 - One Call Property Maintenance,REDACTED PERSONAL DATA
Tendring DC,http://statistics.data.gov.uk/id/local-authority-district/22UN,Community Services,7020 - SSCF - Crime Reduction,4900 - Grants,02/02/2011,2080455-1,9000,2110326 - Open Road Visions Ltd,Funding for Keep Project Worker tendring
Tendring DC,http://statistics.data.gov.uk/id/local-authority-district/22UN,Leisure Services,5940 - Nature Conservation,4597 - Hired Services - Payments to Contractors,08/02/2011,2080548-1,740.77,2102340 - Original Landscape Design,Trees
Tendring DC,http://statistics.data.gov.uk/id/local-authority-district/22UN,Leisure Services,8540 - Leisure Centre Clacton,4400 - Maintenance Under Service Agreements,08/02/2011,1042113-1,734.42,2101014 - Otis Limited,1/2/11-31/1/12
Tendring DC,http://statistics.data.gov.uk/id/local-authority-district/22UN,Leisure Services,8540 - Leisure Centre Clacton,2100 - Building Repairs,15/02/2011,2081015-1,1304.92,2101014 - Otis Limited,
Tendring DC,http://statistics.data.gov.uk/id/local-authority-district/22UN,Environmental Services,H940 - Emergency Repairs Grant,C400 - Grant payments,08/02/2011,2080718-1,2936.33,2110895 - P D Eaves Ltd,194 meadowview Park
Tendring DC,http://statistics.data.gov.uk/id/local-authority-district/22UN,Leisure Services,C115 - Vehicle Replacement,C103 - Other Acquisition - leasing for vehicles,02/02/2011,1041987-1,7000,2101055 - P Tuckwell Ltd,TRAILER X 2
Tendring DC,http://statistics.data.gov.uk/id/local-authority-district/22UN,Leisure Services,1950 - Transport,4040 - Equipment & Tools,22/02/2011,2081232-1,1500,2101055 - P Tuckwell Ltd,Electric Hedgetrimmer
Tendring DC,http://statistics.data.gov.uk/id/local-authority-district/22UN,Human Resources and Customer Services,1880 - Office Accommodation Expenses,2300 - Energy Costs - Fuel Oil,02/02/2011,1042074-1,753.02,2107113 - Pace Fuelcare Ltd,PACE FUELCARE
Tendring DC,http://statistics.data.gov.uk/id/local-authority-district/22UN,Leisure Services,8540 - Leisure Centre Clacton,2300 - Energy Costs - Fuel Oil,08/02/2011,1042122-1,1783.61,2107113 - Pace Fuelcare Ltd,
Tendring DC,http://statistics.data.gov.uk/id/local-authority-district/22UN,Leisure Services,8540 - Leisure Centre Clacton,2300 - Energy Costs - Fuel Oil,15/02/2011,2080804-1,1879.68,2107113 - Pace Fuelcare Ltd,
Tendring DC,http://statistics.data.gov.uk/id/local-authority-district/22UN,Leisure Services,8540 - Leisure Centre Clacton,2300 - Energy Costs - Fuel Oil,22/02/2011,2081063-1,1691.06,2107113 - Pace Fuelcare Ltd,
Tendring DC,http://statistics.data.gov.uk/id/local-authority-district/22UN,Human Resources and Customer Services,1880 - Office Accommodation Expenses,2300 - Energy Costs - Fuel Oil,22/02/2011,2081147-1,1203.6,2107113 - Pace Fuelcare Ltd,Pace Fuelcare
Tendring DC,http://statistics.data.gov.uk/id/local-authority-district/22UN,Leisure Services,5925 - Memorial Seats,4080 - Materials & Consumables,22/02/2011,2081101-1,810.72,2101046 - Pat erns Network UK Ltd,Memorial Bench
Tendring DC,http://statistics.data.gov.uk/id/local-authority-district/22UN,Housing Services,5480 - Repair & Maintenance,2017 - Mechanical Equipment /Extract Fans,15/02/2011,1042399-1,356,REDACTED PERSONAL DATA,
Tendring DC,http://statistics.data.gov.uk/id/local-authority-district/22UN,Housing Services,5480 - Repair & Maintenance,2017 - Mechanical Equipment /Extract Fans,15/02/2011,1042399-2,184,REDACTED PERSONAL DATA,
Tendring DC,http://statistics.data.gov.uk/id/local-authority-district/22UN,Planning Services,4360 - Development Control - Chargeable Account,4460 - Legal & Professional Expenses,02/02/2011,2080424-1,900,2104319 - Peecock Short,REDACTED PERSONAL DATA
Tendring DC,http://statistics.data.gov.uk/id/local-authority-district/22UN,Leisure Services,8540 - Leisure Centre Clacton,5160 - Advertising,15/02/2011,2081013-1,891.1,2101097 - Peter Lockyer Advertising Ltd,
Tendring DC,http://statistics.data.gov.uk/id/local-authority-district/22UN,Human Resources and Customer Services,1807 - Recruitment & Relocation,1500 - Advertising - Recruitment,22/02/2011,2081170-1,1168.85,2101097 - Peter Lockyer Advertising Ltd,Peter Lockyer
Tendring DC,http://statistics.data.gov.uk/id/local-authority-district/22UN,Corporate Performance,"C015 - Public convenience at West End, Dovercourt",C200 - Main Contractor,08/02/2011,2080624-1,1182.98,2101837 - Phelan Construction Ltd,Phelan
Tendring DC,http://statistics.data.gov.uk/id/local-authority-district/22UN,Housing Services,5420 - Communal Cleaning,2706 - Communal Areas Cleaning Expenses,08/02/2011,1042132-1,3344.33,2107884 - Pinnacle Essex,MONTHLY CLEANING SERVICES FEE
Tendring DC,http://statistics.data.gov.uk/id/local-authority-district/22UN,Legal Services,1661 - Other Apportionable Overheads - L & A,4700 - Postage,15/02/2011,2080903-1,5050,2104077 - Pitney Bowes Ltd,Re-credit Franking Machine a/c 10113561
Tendring DC,http://statistics.data.gov.uk/id/local-authority-district/22UN,Planning Services,1520 - Planning Management & Administration,1700 - Training - Courses,22/02/2011,2081053-1,1000,2110028 - POS Enterprises Ltd,DW Localism Group Participation fee
Tendring DC,http://statistics.data.gov.uk/id/local-authority-district/22UN,Leisure Services,8125 - Horticultural Services,4597 - Hired Services - Payments to Contractors,02/02/2011,1042042-1,1443,2101181 - Pro Mac Surfacing,ALBANY GDNS
Tendring DC,http://statistics.data.gov.uk/id/local-authority-district/22UN,Leisure Services,5960 - Recreation Grounds,2100 - Building Repairs,02/02/2011,1042043-1,15481.29,2101181 - Pro Mac Surfacing,WEST END LANE ROADWAY
Tendring DC,http://statistics.data.gov.uk/id/local-authority-district/22UN,Technical & Procurement Services,2001 - Coast Protection - Special Maintenance,2114 - Special Maintenance,22/02/2011,1042459-1,9805,2101181 - Pro Mac Surfacing,PROMENADE WAY
Tendring DC,http://statistics.data.gov.uk/id/local-authority-district/22UN,Technical & Procurement Services,8100 - Engineering Services,4597 - Hired Services - Payments to Contractors,22/02/2011,1042460-1,2813,2101181 - Pro Mac Surfacing,RESURFACING
Tendring DC,http://statistics.data.gov.uk/id/local-authority-district/22UN,Leisure Services,6160 - Princes Theatre,2900 - Premises Licensing - Public Entertainment,22/02/2011,1042554-1,1170.23,2103406 - PRS,PRS LICENCE - OCT 10
Tendring DC,http://statistics.data.gov.uk/id/local-authority-district/22UN,Financial Services,8901 - Interest Payable and similar charges,7570 - Interest Payments,15/02/2011,1042126-1,207500,2101162 - Public Works Loan Board,PRINCIPAL AND INTEREST PAYMENTS
Tendring DC,http://statistics.data.gov.uk/id/local-authority-district/22UN,Financial Services,8901 - Interest Payable and similar charges,7570 - Interest Payments,09/02/2011,2080781-2,6236.9,2101162 - Public Works Loan Board,Principal and Interest Payments
Tendring DC,http://statistics.data.gov.uk/id/local-authority-district/22UN,Financial Services,8901 - Interest Payable and similar charges,7570 - Interest Payments,09/02/2011,2080782-1,102500,2101162 - Public Works Loan Board,Principal and Interest Payments
Tendring DC,http://statistics.data.gov.uk/id/local-authority-district/22UN,Technical & Procurement Services,H795 - Upgrade Fire Alarms (SHUs),C200 - Main Contractor,22/02/2011,2081240-1,1620,2107172 - R I Cantrell Engineering Ltd,Honeycroft
Tendring DC,http://statistics.data.gov.uk/id/local-authority-district/22UN,Technical & Procurement Services,5320 - Sewerage Expenses,4623 - Hired Services - Emptying STWs,02/02/2011,2080342-1,73.75,2101134 - R J Roe & Sons Ltd,Sewage removal
Tendring DC,http://statistics.data.gov.uk/id/local-authority-district/22UN,Technical & Procurement Services,5320 - Sewerage Expenses,4623 - Hired Services - Emptying STWs,02/02/2011,2080342-2,201,2101134 - R J Roe & Sons Ltd,Sewage removal
Tendring DC,http://statistics.data.gov.uk/id/local-authority-district/22UN,Technical & Procurement Services,5320 - Sewerage Expenses,4623 - Hired Services - Emptying STWs,02/02/2011,2080342-3,201,2101134 - R J Roe & Sons Ltd,Sewage removal
Tendring DC,http://statistics.data.gov.uk/id/local-authority-district/22UN,Technical & Procurement Services,5320 - Sewerage Expenses,4623 - Hired Services - Emptying STWs,02/02/2011,2080342-4,73.75,2101134 - R J Roe & Sons Ltd,Sewage removal
Tendring DC,http://statistics.data.gov.uk/id/local-authority-district/22UN,Technical & Procurement Services,8025 - Car Parks - Off St,2123 - Special Surface Maintenance,02/02/2011,2080343-1,65,2101134 - R J Roe & Sons Ltd,Sewage & Jetting
Tendring DC,http://statistics.data.gov.uk/id/local-authority-district/22UN,Technical & Procurement Services,5320 - Sewerage Expenses,4623 - Hired Services - Emptying STWs,02/02/2011,2080343-2,65,2101134 - R J Roe & Sons Ltd,Sewage & Jetting
Tendring DC,http://statistics.data.gov.uk/id/local-authority-district/22UN,Technical & Procurement Services,5320 - Sewerage Expenses,4623 - Hired Services - Emptying STWs,02/02/2011,2080343-3,388,2101134 - R J Roe & Sons Ltd,Sewage & Jetting
Tendring DC,http://statistics.data.gov.uk/id/local-authority-district/22UN,Technical & Procurement Services,H860 - Disabled Adaptations,C200 - Main Contractor,22/02/2011,1042454-1,3803.81,2101187 - Roalco Limited,REDACTED PERSONAL DATA
Tendring DC,http://statistics.data.gov.uk/id/local-authority-district/22UN,Housing Services,5480 - Repair & Maintenance,2000 - Responsive Maintenance - Miscellaneous,22/02/2011,2081251-1,98595.09,2101187 - Roalco Limited,Roalco
Tendring DC,http://statistics.data.gov.uk/id/local-authority-district/22UN,Technical & Procurement Services,H800 - Structural Repairs,C200 - Main Contractor,15/02/2011,1042422-1,10929,2101893 - Rose Builders Ltd,REDACTED PERSONAL DATA
Tendring DC,http://statistics.data.gov.uk/id/local-authority-district/22UN,Benefits & Revenues,1580 - Benefits & Revenues,4700 - Postage,02/02/2011,2080422-1,1523.99,2101139 - Royal Mail,Outgoing Post Jan 2011
Tendring DC,http://statistics.data.gov.uk/id/local-authority-district/22UN,Benefits & Revenues,1580 - Benefits & Revenues,4700 - Postage,08/02/2011,2080668-1,1123.23,2101139 - Royal Mail,Outgoing Post Jan 11
Tendring DC,http://statistics.data.gov.uk/id/local-authority-district/22UN,Benefits & Revenues,1580 - Benefits & Revenues,4700 - Postage,15/02/2011,2080998-1,1192.42,2101139 - Royal Mail,Royal Mail Jan 2011
Tendring DC,http://statistics.data.gov.uk/id/local-authority-district/22UN,Human Resources and Customer Services,1880 - Office Accommodation Expenses,2100 - Building Repairs,15/02/2011,1042401-1,550,2101280 - S Parkin,PARKIN CONS
Tendring DC,http://statistics.data.gov.uk/id/local-authority-district/22UN,Human Resources and Customer Services,1880 - Office Accommodation Expenses,2100 - Building Repairs,15/02/2011,1042401-2,135,2101280 - S Parkin,PARKIN CONS
Tendring DC,http://statistics.data.gov.uk/id/local-authority-district/22UN,Technical & Procurement Services,H860 - Disabled Adaptations,C200 - Main Contractor,15/02/2011,1042404-1,3000,2101280 - S Parkin,REDACTED PERSONAL DATA
Tendring DC,http://statistics.data.gov.uk/id/local-authority-district/22UN,Technical & Procurement Services,H860 - Disabled Adaptations,C200 - Main Contractor,15/02/2011,1042404-2,1671,2101280 - S Parkin,REDACTED PERSONAL DATA
Tendring DC,http://statistics.data.gov.uk/id/local-authority-district/22UN,Technical & Procurement Services,H860 - Disabled Adaptations,C200 - Main Contractor,02/02/2011,2080369-1,3218,2101280 - S Parkin,REDACTED PERSONAL DATA
Tendring DC,http://statistics.data.gov.uk/id/local-authority-district/22UN,Technical & Procurement Services,H860 - Disabled Adaptations,C200 - Main Contractor,02/02/2011,2080369-2,3500,2101280 - S Parkin,REDACTED PERSONAL DATA
Tendring DC,http://statistics.data.gov.uk/id/local-authority-district/22UN,Human Resources and Customer Services,1880 - Office Accommodation Expenses,2100 - Building Repairs,08/02/2011,2080608-1,1005,2101280 - S Parkin,Parkins Construction
Tendring DC,http://statistics.data.gov.uk/id/local-authority-district/22UN,Human Resources and Customer Services,1880 - Office Accommodation Expenses,2100 - Building Repairs,08/02/2011,2080608-2,342,2101280 - S Parkin,Parkins Construction
Tendring DC,http://statistics.data.gov.uk/id/local-authority-district/22UN,Technical & Procurement Services,H860 - Disabled Adaptations,C200 - Main Contractor,20/02/2011,2081507-1,5968.57,2101280 - S Parkin,REDACTED PERSONAL DATA
Tendring DC,http://statistics.data.gov.uk/id/local-authority-district/22UN,Environmental Services,H920 - DFGs,C400 - Grant payments,22/02/2011,2081128-1,4106,2101221 - S W K Lenyk,REDACTED PERSONAL DATA
Tendring DC,http://statistics.data.gov.uk/id/local-authority-district/22UN,Housing Services,H705 - Window/Door Replacement,C200 - Main Contractor,08/02/2011,1042221-1,90170.55,2105783 - SBP Ltd,GROOM HOUSE & GREENFIELDS-WINDOW & DOOR REPLACEMENT
Tendring DC,http://statistics.data.gov.uk/id/local-authority-district/22UN,Financial Services,6640 - Treasury Management,4506 - Consultants Fees - Treasury Management,15/02/2011,2080972-1,2000,2101223 - Sector Treasury Services Ltd,6 Month Fee Aug - Jan
Tendring DC,http://statistics.data.gov.uk/id/local-authority-district/22UN,Leisure Services,1950 - Transport,3200 - Contract Hire - Transport,15/02/2011,2080838-1,3684,2109900 - SHB Hire Ltd,Contract Hire Yr 2
Tendring DC,http://statistics.data.gov.uk/id/local-authority-district/22UN,Leisure Services,1950 - Transport,3200 - Contract Hire - Transport,15/02/2011,2080839-1,3420,2109900 - SHB Hire Ltd,Contract Hire Yr 2
Tendring DC,http://statistics.data.gov.uk/id/local-authority-district/22UN,Leisure Services,1950 - Transport,3200 - Contract Hire - Transport,15/02/2011,2080840-1,4164,2109900 - SHB Hire Ltd,Contract hire Yr 2
Tendring DC,http://statistics.data.gov.uk/id/local-authority-district/22UN,Leisure Services,1950 - Transport,3200 - Contract Hire - Transport,15/02/2011,2080841-1,4164,2109900 - SHB Hire Ltd,Contract Hire Yr 2
Tendring DC,http://statistics.data.gov.uk/id/local-authority-district/22UN,Leisure Services,1950 - Transport,3200 - Contract Hire - Transport,15/02/2011,2080842-1,4164,2109900 - SHB Hire Ltd,Contract Hire Yr 2
Tendring DC,http://statistics.data.gov.uk/id/local-authority-district/22UN,Leisure Services,1950 - Transport,3200 - Contract Hire - Transport,15/02/2011,2080843-1,4164,2109900 - SHB Hire Ltd,Contract Hire Yr 2
Tendring DC,http://statistics.data.gov.uk/id/local-authority-district/22UN,Planning Services,4460 - Planning Policy and Conservation,5446 - Local Development Frame Workl/Local Plan,15/02/2011,1042251-1,3162,2107867 - SJK Planning Ltd,DW CONSULTANCY JAN 2011
Tendring DC,http://statistics.data.gov.uk/id/local-authority-district/22UN,Planning Services,4460 - Planning Policy and Conservation,5446 - Local Development Frame Workl/Local Plan,02/02/2011,2080393-1,1391.2,2107867 - SJK Planning Ltd,DW Consultancy
Tendring DC,http://statistics.data.gov.uk/id/local-authority-district/22UN,Corporate Performance,1432 - TDC Website,4500 - Consultancy Fees,02/02/2011,1042019-1,5000,2109690 - SOCITM Consulting,INTERNET REVEIW
Tendring DC,http://statistics.data.gov.uk/id/local-authority-district/22UN,Benefits & Revenues,1580 - Benefits & Revenues,4462 - Legal Fees incl. Bailiffs re debt recovery,15/02/2011,2081004-1,200,2110729 - Solex Legal Services Ltd,Solex - 10967276
Tendring DC,http://statistics.data.gov.uk/id/local-authority-district/22UN,Benefits & Revenues,1580 - Benefits & Revenues,4462 - Legal Fees incl. Bailiffs re debt recovery,15/02/2011,2081004-2,160,2110729 - Solex Legal Services Ltd,Solex - 10967276
Tendring DC,http://statistics.data.gov.uk/id/local-authority-district/22UN,Benefits & Revenues,1580 - Benefits & Revenues,4462 - Legal Fees incl. Bailiffs re debt recovery,15/02/2011,2081004-3,150,2110729 - Solex Legal Services Ltd,Solex - 10967276
Tendring DC,http://statistics.data.gov.uk/id/local-authority-district/22UN,Community Services,6740 - Careline,4710 - Telephones - Charges,22/02/2011,2081172-1,792.7,2108907 - Southern Communications Ltd,Southern Communications - Jan
Tendring DC,http://statistics.data.gov.uk/id/local-authority-district/22UN,Community Services,5360 - Sheltered Units,4710 - Telephones - Charges,22/02/2011,2081172-10,48.76,2108907 - Southern Communications Ltd,Southern Communications - Jan
Tendring DC,http://statistics.data.gov.uk/id/local-authority-district/22UN,Community Services,5360 - Sheltered Units,4710 - Telephones - Charges,22/02/2011,2081172-11,42.15,2108907 - Southern Communications Ltd,Southern Communications - Jan
Tendring DC,http://statistics.data.gov.uk/id/local-authority-district/22UN,Community Services,5360 - Sheltered Units,4710 - Telephones - Charges,22/02/2011,2081172-12,26.34,2108907 - Southern Communications Ltd,Southern Communications - Jan
Tendring DC,http://statistics.data.gov.uk/id/local-authority-district/22UN,Community Services,6740 - Careline,4718 - Fixed Communication Lines,22/02/2011,2081172-2,110,2108907 - Southern Communications Ltd,Southern Communications - Jan
Tendring DC,http://statistics.data.gov.uk/id/local-authority-district/22UN,Community Services,5360 - Sheltered Units,4710 - Telephones - Charges,22/02/2011,2081172-3,44.26,2108907 - Southern Communications Ltd,Southern Communications - Jan
Tendring DC,http://statistics.data.gov.uk/id/local-authority-district/22UN,Community Services,5360 - Sheltered Units,4710 - Telephones - Charges,22/02/2011,2081172-4,45.92,2108907 - Southern Communications Ltd,Southern Communications - Jan
Tendring DC,http://statistics.data.gov.uk/id/local-authority-district/22UN,Community Services,5360 - Sheltered Units,4710 - Telephones - Charges,22/02/2011,2081172-5,45.88,2108907 - Southern Communications Ltd,Southern Communications - Jan
Tendring DC,http://statistics.data.gov.uk/id/local-authority-district/22UN,Community Services,5360 - Sheltered Units,4710 - Telephones - Charges,22/02/2011,2081172-6,37.85,2108907 - Southern Communications Ltd,Southern Communications - Jan
Tendring DC,http://statistics.data.gov.uk/id/local-authority-district/22UN,Community Services,5360 - Sheltered Units,4710 - Telephones - Charges,22/02/2011,2081172-7,56.96,2108907 - Southern Communications Ltd,Southern Communications - Jan
Tendring DC,http://statistics.data.gov.uk/id/local-authority-district/22UN,Community Services,5360 - Sheltered Units,4710 - Telephones - Charges,22/02/2011,2081172-8,26.09,2108907 - Southern Communications Ltd,Southern Communications - Jan
Tendring DC,http://statistics.data.gov.uk/id/local-authority-district/22UN,Community Services,5360 - Sheltered Units,4710 - Telephones - Charges,22/02/2011,2081172-9,53.79,2108907 - Southern Communications Ltd,Southern Communications - Jan
Tendring DC,http://statistics.data.gov.uk/id/local-authority-district/22UN,Technical & Procurement Services,5480 - Repair & Maintenance,2070 - Lift/Stairlift Repairs,02/02/2011,2080373-1,2251,2101360 - Stannah Lift Services Limited,REDACTED PERSONAL DATA
Tendring DC,http://statistics.data.gov.uk/id/local-authority-district/22UN,Technical & Procurement Services,5480 - Repair & Maintenance,2069 - Lift/Stairlift Servicing,22/02/2011,2081252-1,1571.27,2101360 - Stannah Lift Services Limited,Termed Maintenance for Various Luft Equipment
Tendring DC,http://statistics.data.gov.uk/id/local-authority-district/22UN,Technical & Procurement Services,5480 - Repair & Maintenance,2070 - Lift/Stairlift Repairs,22/02/2011,2081252-2,60,2101360 - Stannah Lift Services Limited,Termed Maintenance for Various Luft Equipment
Tendring DC,http://statistics.data.gov.uk/id/local-authority-district/22UN,Regeneration Services,7747 - Town Centres Funding (Empty Shops),4900 - Grants,02/02/2011,2080311-1,2000,2110812 - Sterling Upholstery,Grant - Sterling Upholstery
Tendring DC,http://statistics.data.gov.uk/id/local-authority-district/22UN,Environmental Services,4640 - Port Health,5500 - Miscellaneous Expenses,15/02/2011,1042261-1,1850,2101322 - Suffolk Coastal District Council,AG MANIFEST CHECKS PDG/IKD
Tendring DC,http://statistics.data.gov.uk/id/local-authority-district/22UN,Legal Services,1300 - Solicitors Service Unit,4355 - Books & Periodicals,08/02/2011,2080557-1,71,2101323 - Sweet & Maxwell Ltd,Housing Law & Practice
Tendring DC,http://statistics.data.gov.uk/id/local-authority-district/22UN,Legal Services,1300 - Solicitors Service Unit,4355 - Books & Periodicals,08/02/2011,2080557-2,632,2101323 - Sweet & Maxwell Ltd,Housing Law & Practice
Tendring DC,http://statistics.data.gov.uk/id/local-authority-district/22UN,Technical & Procurement Services,H860 - Disabled Adaptations,C200 - Main Contractor,02/02/2011,2080359-1,755,2110276 - Team Green,Vyntoner House
Tendring DC,http://statistics.data.gov.uk/id/local-authority-district/22UN,Leisure Services,5880 - Management Of Sport & Leisure Facilities,4597 - Hired Services - Payments to Contractors,02/02/2011,2080415-1,2166.52,2106188 - Technogym UK Ltd,Techno Gym DSP
Tendring DC,http://statistics.data.gov.uk/id/local-authority-district/22UN,Leisure Services,8540 - Leisure Centre Clacton,4050 - Technogym Keys,15/02/2011,2080799-1,1415,2106188 - Technogym UK Ltd,
Tendring DC,http://statistics.data.gov.uk/id/local-authority-district/22UN,Community Services,7050 - TENBAC Scheme,4900 - Grants,02/02/2011,2080452-1,3100,2109877 - Tenbac Ltd,Tenbac Ltd
Tendring DC,http://statistics.data.gov.uk/id/local-authority-district/22UN,Community Services,7030 - Crime and Disorder - Police Grant,4900 - Grants,02/02/2011,2080452-2,715,2109877 - Tenbac Ltd,Tenbac Ltd
Tendring DC,http://statistics.data.gov.uk/id/local-authority-district/22UN,Community Services,7020 - SSCF - Crime Reduction,4900 - Grants,02/02/2011,2080452-3,1185,2109877 - Tenbac Ltd,Tenbac Ltd
Tendring DC,http://statistics.data.gov.uk/id/local-authority-district/22UN,Environmental Services,4840 - Recycling,6299 - Contractors Reuse,22/02/2011,2081077-1,1259.18,2102267 - Tendring Reuse & Employment Enterprise,Tree - Jan
Tendring DC,http://statistics.data.gov.uk/id/local-authority-district/22UN,Housing Services,5140 - Homelessness,4683 - Other Homelessness Expenses,15/02/2011,2080909-1,500,REDACTED PERSONAL DATA,Deposit Guarantee
Tendring DC,http://statistics.data.gov.uk/id/local-authority-district/22UN,Leisure Services,4560 - Crematorium,5455 - Miscellaneous Memorabilia,22/02/2011,1042494-1,253,2110688 - The Anglia Sign Casting Company,
Tendring DC,http://statistics.data.gov.uk/id/local-authority-district/22UN,Leisure Services,4560 - Crematorium,5455 - Miscellaneous Memorabilia,22/02/2011,1042494-2,263.54,2110688 - The Anglia Sign Casting Company,
Tendring DC,http://statistics.data.gov.uk/id/local-authority-district/22UN,Leisure Services,4560 - Crematorium,5455 - Miscellaneous Memorabilia,22/02/2011,1042494-3,137.5,2110688 - The Anglia Sign Casting Company,
Tendring DC,http://statistics.data.gov.uk/id/local-authority-district/22UN,Environmental Services,H920 - DFGs,C400 - Grant payments,02/02/2011,1042002-1,1232.57,2101401 - The Guinness Trust,REDACTED PERSONAL DATA
Tendring DC,http://statistics.data.gov.uk/id/local-authority-district/22UN,Environmental Services,H920 - DFGs,C400 - Grant payments,02/02/2011,1042003-1,608.1,2101401 - The Guinness Trust,REDACTED PERSONAL DATA
Tendring DC,http://statistics.data.gov.uk/id/local-authority-district/22UN,Environmental Services,H920 - DFGs,C400 - Grant payments,02/02/2011,1042004-1,608.25,2101401 - The Guinness Trust,REDACTED PERSONAL DATA
Tendring DC,http://statistics.data.gov.uk/id/local-authority-district/22UN,Environmental Services,H920 - DFGs,C400 - Grant payments,02/02/2011,1042005-1,1395.7,2101401 - The Guinness Trust,REDACTED PERSONAL DATA
Tendring DC,http://statistics.data.gov.uk/id/local-authority-district/22UN,Environmental Services,H920 - DFGs,C400 - Grant payments,15/02/2011,1042236-1,939.44,2101401 - The Guinness Trust,REDACTED PERSONAL DATA
Tendring DC,http://statistics.data.gov.uk/id/local-authority-district/22UN,Environmental Services,H920 - DFGs,C400 - Grant payments,08/02/2011,2080712-1,662.67,2101401 - The Guinness Trust,REDACTED PERSONAL DATA
Tendring DC,http://statistics.data.gov.uk/id/local-authority-district/22UN,Environmental Services,H920 - DFGs,C400 - Grant payments,08/02/2011,2080713-1,640.23,2101401 - The Guinness Trust,REDACTED PERSONAL DATA
Tendring DC,http://statistics.data.gov.uk/id/local-authority-district/22UN,Environmental Services,H920 - DFGs,C400 - Grant payments,08/02/2011,2080714-1,700,2101401 - The Guinness Trust,REDACTED PERSONAL DATA
Tendring DC,http://statistics.data.gov.uk/id/local-authority-district/22UN,Environmental Services,H920 - DFGs,C400 - Grant payments,22/02/2011,2081131-1,625.97,2101401 - The Guinness Trust,REDACTED PERSONAL DATA
Tendring DC,http://statistics.data.gov.uk/id/local-authority-district/22UN,Environmental Services,H920 - DFGs,C400 - Grant payments,22/02/2011,2081132-1,615.9,2101401 - The Guinness Trust,REDACTED PERSONAL DATA
Tendring DC,http://statistics.data.gov.uk/id/local-authority-district/22UN,Environmental Services,H920 - DFGs,C400 - Grant payments,22/02/2011,2081133-1,685.53,2101401 - The Guinness Trust,REDACTED PERSONAL DATA
Tendring DC,http://statistics.data.gov.uk/id/local-authority-district/22UN,Environmental Services,H920 - DFGs,C400 - Grant payments,22/02/2011,2081134-1,639.27,2101401 - The Guinness Trust,REDACTED PERSONAL DATA
Tendring DC,http://statistics.data.gov.uk/id/local-authority-district/22UN,Environmental Services,H920 - DFGs,C400 - Grant payments,22/02/2011,2081135-1,529.2,2101401 - The Guinness Trust,REDACTED PERSONAL DATA
Tendring DC,http://statistics.data.gov.uk/id/local-authority-district/22UN,Environmental Services,H920 - DFGs,C400 - Grant payments,22/02/2011,2081136-1,523.46,2101401 - The Guinness Trust,REDACTED PERSONAL DATA
Tendring DC,http://statistics.data.gov.uk/id/local-authority-district/22UN,Community Services,6810 - Welfare Rights Service,4900 - Grants,22/02/2011,2081176-1,800,2101401 - The Guinness Trust,Welfare & Benefits Advice
Tendring DC,http://statistics.data.gov.uk/id/local-authority-district/22UN,Housing Services,5140 - Homelessness,4683 - Other Homelessness Expenses,02/02/2011,2080313-1,625,2101491 - The Letting Link,Prevention Fund
Tendring DC,http://statistics.data.gov.uk/id/local-authority-district/22UN,Community Services,6740 - Careline,4040 - Equipment & Tools,08/02/2011,2080674-1,555,2103995 - The Promotional Mix Ltd,Pens with Careline Address
Tendring DC,http://statistics.data.gov.uk/id/local-authority-district/22UN,Human Resources and Customer Services,1800 - Qualification Training,1700 - Training - Courses,22/02/2011,2081140-1,2470,2110961 - The University of Northampton,Uni of Northampton
Tendring DC,http://statistics.data.gov.uk/id/local-authority-district/22UN,Housing Services,5480 - Repair & Maintenance,2016 - PVCu Window And Door Repairs,15/02/2011,1042409-1,689.5,2101444 - Thermoshield Windows Ltd,43685/3
Tendring DC,http://statistics.data.gov.uk/id/local-authority-district/22UN,Housing Services,5480 - Repair & Maintenance,2016 - PVCu Window And Door Repairs,15/02/2011,1042415-1,652.96,2101444 - Thermoshield Windows Ltd,107667/2
Tendring DC,http://statistics.data.gov.uk/id/local-authority-district/22UN,Technical & Procurement Services,8025 - Car Parks - Off St,4632 - Security,08/02/2011,2080762-1,98.5,2101437 - Tower Security (Walton) Ltd  a/c 10465 142281,Tower off Street
Tendring DC,http://statistics.data.gov.uk/id/local-authority-district/22UN,Technical & Procurement Services,8025 - Car Parks - Off St,4632 - Security,08/02/2011,2080762-2,200,2101437 - Tower Security (Walton) Ltd  a/c 10465 142281,Tower off Street
Tendring DC,http://statistics.data.gov.uk/id/local-authority-district/22UN,Technical & Procurement Services,8025 - Car Parks - Off St,4632 - Security,08/02/2011,2080762-3,200,2101437 - Tower Security (Walton) Ltd  a/c 10465 142281,Tower off Street
Tendring DC,http://statistics.data.gov.uk/id/local-authority-district/22UN,Technical & Procurement Services,8025 - Car Parks - Off St,4632 - Security,08/02/2011,2080762-4,125,2101437 - Tower Security (Walton) Ltd  a/c 10465 142281,Tower off Street
Tendring DC,http://statistics.data.gov.uk/id/local-authority-district/22UN,Technical & Procurement Services,8025 - Car Parks - Off St,4632 - Security,08/02/2011,2080762-5,125,2101437 - Tower Security (Walton) Ltd  a/c 10465 142281,Tower off Street
Tendring DC,http://statistics.data.gov.uk/id/local-authority-district/22UN,Technical & Procurement Services,8025 - Car Parks - Off St,4632 - Security,08/02/2011,2080762-6,125,2101437 - Tower Security (Walton) Ltd  a/c 10465 142281,Tower off Street
Tendring DC,http://statistics.data.gov.uk/id/local-authority-district/22UN,Technical & Procurement Services,8025 - Car Parks - Off St,4632 - Security,08/02/2011,2080762-7,123.8,2101437 - Tower Security (Walton) Ltd  a/c 10465 142281,Tower off Street
Tendring DC,http://statistics.data.gov.uk/id/local-authority-district/22UN,Technical & Procurement Services,8025 - Car Parks - Off St,4632 - Security,08/02/2011,2080762-8,66.4,2101437 - Tower Security (Walton) Ltd  a/c 10465 142281,Tower off Street
Tendring DC,http://statistics.data.gov.uk/id/local-authority-district/22UN,Technical & Procurement Services,8025 - Car Parks - Off St,4632 - Security,08/02/2011,2080762-9,24.7,2101437 - Tower Security (Walton) Ltd  a/c 10465 142281,Tower off Street
Tendring DC,http://statistics.data.gov.uk/id/local-authority-district/22UN,Leisure Services,5980 - Playgrounds,4052 - Playground Equipment,15/02/2011,1042383-1,1000,2108436 - Travelers Insurance Co Ltd,PL08-06 EXCESS
Tendring DC,http://statistics.data.gov.uk/id/local-authority-district/22UN,Environmental Services,H920 - DFGs,C400 - Grant payments,02/02/2011,1041994-1,9278,2104393 - Trinity Construction Services,REDACTED PERSONAL DATA
Tendring DC,http://statistics.data.gov.uk/id/local-authority-district/22UN,Environmental Services,H920 - DFGs,C400 - Grant payments,02/02/2011,1041995-1,2030.4,2104393 - Trinity Construction Services,REDACTED PERSONAL DATA
Tendring DC,http://statistics.data.gov.uk/id/local-authority-district/22UN,Environmental Services,H920 - DFGs,C400 - Grant payments,22/02/2011,2081123-1,3527.99,2104393 - Trinity Construction Services,REDACTED PERSONAL DATA
Tendring DC,http://statistics.data.gov.uk/id/local-authority-district/22UN,Environmental Services,4590 - HMO Projects,4500 - Consultancy Fees,22/02/2011,2081074-1,7386.82,2110639 - University of Essex,Uni of Essex
Tendring DC,http://statistics.data.gov.uk/id/local-authority-district/22UN,Environmental Services,4840 - Recycling,5495 - Sweepings,08/02/2011,1042217-1,3357.09,2101092 - Veolia ES (UK) Limited,CONFEE ST DISP DEC 10
Tendring DC,http://statistics.data.gov.uk/id/local-authority-district/22UN,Environmental Services,4880 - Refuse Collection,6300 - Contract Payment,08/02/2011,1042218-1,98707.14,2101092 - Veolia ES (UK) Limited,CONFEE STREETS DEC 10
Tendring DC,http://statistics.data.gov.uk/id/local-authority-district/22UN,Environmental Services,5240 - Managing Tenancies,5248 - Estate Management Expenses,08/02/2011,1042218-2,7971.78,2101092 - Veolia ES (UK) Limited,CONFEE STREETS DEC 10
Tendring DC,http://statistics.data.gov.uk/id/local-authority-district/22UN,Environmental Services,1860 - Depots General,2100 - Building Repairs,08/02/2011,1042218-3,161.77,2101092 - Veolia ES (UK) Limited,CONFEE STREETS DEC 10
Tendring DC,http://statistics.data.gov.uk/id/local-authority-district/22UN,Environmental Services,4900 - Street Sweeping,4618 - Hired Services - Environmental Clean ups,08/02/2011,1042218-4,37.44,2101092 - Veolia ES (UK) Limited,CONFEE STREETS DEC 10
Tendring DC,http://statistics.data.gov.uk/id/local-authority-district/22UN,Environmental Services,5920 - Open Spaces,2106 - Grounds Maintenance Horticultural Svs Programmed,08/02/2011,1042218-5,69.05,2101092 - Veolia ES (UK) Limited,CONFEE STREETS DEC 10
Tendring DC,http://statistics.data.gov.uk/id/local-authority-district/22UN,Environmental Services,4880 - Refuse Collection,6300 - Contract Payment,08/02/2011,1042219-1,137354.51,2101092 - Veolia ES (UK) Limited,CONFEE WASTE DEC 11
Tendring DC,http://statistics.data.gov.uk/id/local-authority-district/22UN,Environmental Services,4840 - Recycling,6300 - Contract Payment,08/02/2011,1042220-1,88402.97,2101092 - Veolia ES (UK) Limited,CONFEE RECYCLING DEC 10
Tendring DC,http://statistics.data.gov.uk/id/local-authority-district/22UN,Human Resources and Customer Services,1880 - Office Accommodation Expenses,4446 - Bulk Bin Collection,22/02/2011,2081169-1,520.32,2101092 - Veolia ES (UK) Limited,Veolia Waste
Tendring DC,http://statistics.data.gov.uk/id/local-authority-district/22UN,Leisure Services,8125 - Horticultural Services,4597 - Hired Services - Payments to Contractors,22/02/2011,2081233-1,783.74,2101092 - Veolia ES (UK) Limited,Cem Bins Jan 11
Tendring DC,http://statistics.data.gov.uk/id/local-authority-district/22UN,Environmental Services,4840 - Recycling,6300 - Contract Payment,22/02/2011,2081253-1,99950.67,2101092 - Veolia ES (UK) Limited,Confee Recycling Jan 11
Tendring DC,http://statistics.data.gov.uk/id/local-authority-district/22UN,Environmental Services,4880 - Refuse Collection,6300 - Contract Payment,22/02/2011,2081254-1,137354.51,2101092 - Veolia ES (UK) Limited,Confee Waste Jan 11
Tendring DC,http://statistics.data.gov.uk/id/local-authority-district/22UN,Environmental Services,4880 - Refuse Collection,6300 - Contract Payment,22/02/2011,2081255-1,105142.98,2101092 - Veolia ES (UK) Limited,Confee Street Jan 11
Tendring DC,http://statistics.data.gov.uk/id/local-authority-district/22UN,Environmental Services,5920 - Open Spaces,2106 - Grounds Maintenance Horticultural Svs Programmed,22/02/2011,2081255-2,69.06,2101092 - Veolia ES (UK) Limited,Confee Street Jan 11
Tendring DC,http://statistics.data.gov.uk/id/local-authority-district/22UN,Environmental Services,5240 - Managing Tenancies,5248 - Estate Management Expenses,22/02/2011,2081255-3,138.12,2101092 - Veolia ES (UK) Limited,Confee Street Jan 11
Tendring DC,http://statistics.data.gov.uk/id/local-authority-district/22UN,Environmental Services,4840 - Recycling,5495 - Sweepings,22/02/2011,2081256-1,6516.33,2101092 - Veolia ES (UK) Limited,Confee St Disp Jan 11
Tendring DC,http://statistics.data.gov.uk/id/local-authority-district/22UN,Leisure Services,8540 - Leisure Centre Clacton,2510 - Water Services - Unmetered,15/02/2011,2081014-1,942.21,2101318 - Veolia Water East Ltd,
Tendring DC,http://statistics.data.gov.uk/id/local-authority-district/22UN,Leisure Services,6040 - Misc Seafront Activities,2510 - Water Services - Unmetered,22/02/2011,2081089-1,263.48,2101318 - Veolia Water East Ltd,Low lighthouse
Tendring DC,http://statistics.data.gov.uk/id/local-authority-district/22UN,Leisure Services,6040 - Misc Seafront Activities,2520 - Sewerage & Environmental Charges,22/02/2011,2081089-2,265.54,2101318 - Veolia Water East Ltd,Low lighthouse
Tendring DC,http://statistics.data.gov.uk/id/local-authority-district/22UN,Technical & Procurement Services,1610 - Car Parks Service Unit Account,4710 - Telephones - Charges,15/02/2011,1042257-1,211.55,2101522 - Vodafone Corporate,VODAFONE
Tendring DC,http://statistics.data.gov.uk/id/local-authority-district/22UN,Technical & Procurement Services,1610 - Car Parks Service Unit Account,4710 - Telephones - Charges,15/02/2011,1042257-2,807.89,2101522 - Vodafone Corporate,VODAFONE
Tendring DC,http://statistics.data.gov.uk/id/local-authority-district/22UN,Technical & Procurement Services,1600 - Technical and Procurement - Technical Services,4710 - Telephones - Charges,15/02/2011,1042279-1,201.37,2101522 - Vodafone Corporate,T&P MOBILE BILLS
Tendring DC,http://statistics.data.gov.uk/id/local-authority-district/22UN,Technical & Procurement Services,1600 - Technical and Procurement - Technical Services,4710 - Telephones - Charges,15/02/2011,1042279-2,501.7,2101522 - Vodafone Corporate,T&P MOBILE BILLS
Tendring DC,http://statistics.data.gov.uk/id/local-authority-district/22UN,Leisure Services,1400 - Leisure,4710 - Telephones - Charges,15/02/2011,1042342-1,214.86,2101522 - Vodafone Corporate,LEISURE MOBILES OCT-DEC
Tendring DC,http://statistics.data.gov.uk/id/local-authority-district/22UN,Leisure Services,1400 - Leisure,4710 - Telephones - Charges,15/02/2011,1042342-2,329.36,2101522 - Vodafone Corporate,LEISURE MOBILES OCT-DEC
Tendring DC,http://statistics.data.gov.uk/id/local-authority-district/22UN,Leisure Services,1400 - Leisure,4710 - Telephones - Charges,15/02/2011,1042342-3,30.79,2101522 - Vodafone Corporate,LEISURE MOBILES OCT-DEC
Tendring DC,http://statistics.data.gov.uk/id/local-authority-district/22UN,Human Resources and Customer Services,1420 - Human Resources & Customer Services,4716 - Mobile Telephone Costs,08/02/2011,2080658-1,155.91,2101522 - Vodafone Corporate,Vodafone Jan 11
Tendring DC,http://statistics.data.gov.uk/id/local-authority-district/22UN,Human Resources and Customer Services,1420 - Human Resources & Customer Services,4716 - Mobile Telephone Costs,08/02/2011,2080658-2,394.88,2101522 - Vodafone Corporate,Vodafone Jan 11
Tendring DC,http://statistics.data.gov.uk/id/local-authority-district/22UN,Community Services,6740 - Careline,4716 - Mobile Telephone Costs,08/02/2011,2080669-1,251.98,2101522 - Vodafone Corporate,Vodafone Bill
Tendring DC,http://statistics.data.gov.uk/id/local-authority-district/22UN,Community Services,6740 - Careline,4716 - Mobile Telephone Costs,08/02/2011,2080669-2,265.57,2101522 - Vodafone Corporate,Vodafone Bill
Tendring DC,http://statistics.data.gov.uk/id/local-authority-district/22UN,Legal Services,6580 - Member Support Cost,4716 - Mobile Telephone Costs,15/02/2011,2081000-1,111.99,2101522 - Vodafone Corporate,Mobile Phones
Tendring DC,http://statistics.data.gov.uk/id/local-authority-district/22UN,Legal Services,6580 - Member Support Cost,4716 - Mobile Telephone Costs,15/02/2011,2081000-2,847.06,2101522 - Vodafone Corporate,Mobile Phones
Tendring DC,http://statistics.data.gov.uk/id/local-authority-district/22UN,Legal Services,6580 - Member Support Cost,4716 - Mobile Telephone Costs,15/02/2011,2081000-3,30.76,2101522 - Vodafone Corporate,Mobile Phones
Tendring DC,http://statistics.data.gov.uk/id/local-authority-district/22UN,Environmental Services,1060 - Environmental Services,4710 - Telephones - Charges,15/02/2011,2081002-1,392.04,2101522 - Vodafone Corporate,Vodafone
Tendring DC,http://statistics.data.gov.uk/id/local-authority-district/22UN,Environmental Services,1060 - Environmental Services,4710 - Telephones - Charges,15/02/2011,2081002-2,215.12,2101522 - Vodafone Corporate,Vodafone
Tendring DC,http://statistics.data.gov.uk/id/local-authority-district/22UN,Housing Services,5480 - Repair & Maintenance,2011 - Responsive Maintenance - Scaffolding,08/02/2011,1042191-1,630,2108082 - W & S Scaffolding,107961/2
Tendring DC,http://statistics.data.gov.uk/id/local-authority-district/22UN,Housing Services,5480 - Repair & Maintenance,2011 - Responsive Maintenance - Scaffolding,08/02/2011,1042191-2,290,2108082 - W & S Scaffolding,107961/2
Tendring DC,http://statistics.data.gov.uk/id/local-authority-district/22UN,Housing Services,5480 - Repair & Maintenance,2011 - Responsive Maintenance - Scaffolding,08/02/2011,1042191-3,-290,2108082 - W & S Scaffolding,107961/2
Tendring DC,http://statistics.data.gov.uk/id/local-authority-district/22UN,Environmental Services,4840 - Recycling,5467 - Material Collection Payments,22/02/2011,2081072-1,3291.44,2101553 - Waste Recycling Limited,Waste Rec - Jan
Tendring DC,http://statistics.data.gov.uk/id/local-authority-district/22UN,Housing Services,5480 - Repair & Maintenance,2073 - Smoke Alarm Service/Testing,22/02/2011,2081181-1,1487.5,2101593 - Weaver & Anderson,Cleaning of Smoke Alarms
Tendring DC,http://statistics.data.gov.uk/id/local-authority-district/22UN,Housing Services,5480 - Repair & Maintenance,2056 - Electric Heating Repairs,22/02/2011,2081197-1,740.95,2101593 - Weaver & Anderson,
Tendring DC,http://statistics.data.gov.uk/id/local-authority-district/22UN,Legal Services,1320 - Print Unit,4350 - Photocopier Hire,22/02/2011,1042498-1,1869.9,2101527 - Xerox Finance Ltd,XEROX RENTAL H127
Tendring DC,http://statistics.data.gov.uk/id/local-authority-district/22UN,Legal Services,1320 - Print Unit,4350 - Photocopier Hire,15/02/2011,2080992-1,1964.1,2101527 - Xerox Finance Ltd,Xerox Rental 252
Tendring DC,http://statistics.data.gov.uk/id/local-authority-district/22UN,Benefits & Revenues,1580 - Benefits & Revenues,4300 - Printing & Stationery,08/02/2011,2080639-1,902.32,2107546 - XMA Limited,Cartridges & Drums
